Workbook

Sheet овз 7-11
A1: Согласовано | O1: Утверждено
O2: ООО "КРЕПЫШ"
O3: _______________________Ефремов В.Ю.
A6: Меню для организации питания детей с ОВЗ в возрасте от 7 до 11 лет в образовательных учреждениях Мензелинского района РТ на 2 полугодие 2021-2022 учебный год.
A8: 1 день, 1 неделя
A9: № рецептуры | B9: Прием пищи, наименование блюда | C9: Масса | D9: Пищевые вещества | G9: Энергетическая ценность | H9: Витамины | M9: Минеральные вещества
D10: Белки | E10: Жиры | F10: Углеводы | H10: B1 | I10: B2 | J10: A | K10: D | L10: C | M10: Na | N10: K | O10: Ca | P10: Mg | Q10: P | R10: Fe | S10: I | T10: Se | U10: F
C11: г | D11: г | E11: г | F11: г | G11: ккал | H11: мг | I11: мг | J11: мкг рет.экв | K11: мкг | L11: мг | M11: мг | N11: мг | O11: мг | P11: мг | Q11: мг | R11: мг | S11: мкг | T11: мкг | U11: мкг
B12: Понедельник, 1 неделя
B13: Буфет | C13: 7-11
A14: 54-3гн-2020 | B14: Чай с лимоном и сахаром | C14: 155 | D14: 0.2 | E14: 0 | F14: 5 | G14: 20.9 | H14: 0 | I14: 0.01 | J14: 0.29 | K14: 0 | L14: 0.87 | M14: 0.95 | N14: 22.67 | O14: 50.25 | P14: 3.42 | Q14: 6.39 | R14: 0.58 | S14: 0.01 | T14: 0.02 | U14: 0.53
A15: Пром. | B15: Сушка простая | C15: 20 | D15: 2.2 | E15: 0.3 | F15: 13.8 | G15: 66.1 | H15: 0.05 | I15: 0.01 | J15: 0 | K15: 0 | L15: 0 | M15: 121 | N15: 37 | O15: 6 | P15: 9.2 | Q15: 24.2 | R15: 0.58 | S15: 0 | T15: 0 | U15: 0
B16: Итого за буфет | C16: 175 | D16: 2.4 | E16: 0.3 | F16: 18.8 | G16: 87 | H16: 0.05 | I16: 0.02 | J16: 0.29 | K16: 0 | L16: 0.87 | M16: 121.95 | N16: 59.67 | O16: 56.25 | P16: 12.62 | Q16: 30.59 | R16: 1.16 | S16: 0.01 | T16: 0.02 | U16: 0.53
B17: Горячий завтрак | C17: 7-11
A18: ном.рец №41 | B18: Салат из отварной моркови с яблоками с растительным маслом | C18: 60 | D18: 0.6 | E18: 5.9 | F18: 4.6 | G18: 74.7 | H18: 0 | I18: 0 | J18: 0.7 | K18: 0 | L18: 1.4 | M18: 0 | N18: 0 | O18: 19.1 | P18: 13.6 | Q18: 19.6 | R18: 0.8 | S18: 0 | T18: 0 | U18: 0
A19: 54-4г-2020 | B19: Каша гречневая рассыпчатая | C19: 150 | D19: 8.2 | E19: 6.3 | F19: 35.9 | G19: 233.7 | H19: 0.21 | I19: 0.12 | J19: 19.19 | K19: 0.09 | L19: 0 | M19: 149.45 | N19: 219.36 | O19: 46.62 | P19: 120.16 | Q19: 180.99 | R19: 4.05 | S19: 22.28 | T19: 3.52 | U19: 16.06
A20: ном.рец №174 | B20: Тефтели мясные из говядины, полуфабрикат в соусе | C20: 75/30 | D20: 10.81 | E20: 10.4 | F20: 8.42 | G20: 168.9 | H20: 0 | I20: 0 | J20: 38.45 | K20: 0.01 | L20: 1.79 | M20: 3 | N20: 43 | O20: 45.75 | P20: 35.13 | Q20: 109 | R20: 1.6 | S20: 0 | T20: 0 | U20: 0
A21: 54-4гн-2020 | B21: Чай с молоком и сахаром | C21: 200 | D21: 1.6 | E21: 1.1 | F21: 8.6 | G21: 50.9 | H21: 0.01 | I21: 0.07 | J21: 6.9 | K21: 0 | L21: 0.3 | M21: 19.68 | N21: 81.35 | O21: 103.48 | P21: 9.92 | Q21: 46.33 | R21: 0.78 | S21: 4.5 | T21: 0.88 | U21: 10
A22: Пром. | B22: Хлеб пшеничный | C22: 30 | D22: 2.3 | E22: 0.2 | F22: 14.8 | G22: 70.3 | H22: 0.03 | I22: 0.01 | J22: 0 | K22: 0 | L22: 0 | M22: 149.7 | N22: 27.9 | O22: 6 | P22: 4.2 | Q22: 19.5 | R22: 0.33 | S22: 0.96 | T22: 1.8 | U22: 4.35
A23: Пром. | B23: Хлеб ржаной | C23: 20 | D23: 1.3 | E23: 0.2 | F23: 6.7 | G23: 34.2 | H23: 0.04 | I23: 0.02 | J23: 0 | K23: 0 | L23: 0 | M23: 122 | N23: 49 | O23: 7 | P23: 9.4 | Q23: 31.6 | R23: 0.78 | S23: 0 | T23: 6.18 | U23: 0
B24: Итого за Завтрак | C24: 565 | D24: =SUM(D18:D23) -> 24.81 | E24: 24.1 | F24: 79.02 | G24: 632.7 | H24: 0.29 | I24: 0.22 | J24: 65.24 | K24: 0.1 | L24: 3.49 | M24: 443.83 | N24: 420.61 | O24: 227.95 | P24: 192.41 | Q24: 407.02 | R24: 8.34 | S24: 27.74 | T24: 12.38 | U24: 30.41
B25: Итого за день | C25: =C24+C16 -> 740 | D25: 27.21 | E25: 24.4 | F25: 97.82 | G25: 719.7 | H25: 0.34 | I25: 0.24 | J25: 65.53 | K25: 0.1 | L25: 4.36 | M25: 565.78 | N25: 480.28 | O25: 284.2 | P25: 205.03 | Q25: 437.61 | R25: 9.5 | S25: 27.75 | T25: 12.4 | U25: 30.94
A27: 2 день, 1 неделя
A28: № рецептуры | B28: Прием пищи, наименование блюда | C28: Масса | D28: Пищевые вещества | G28: Энергетическая ценность | H28: Витамины | M28: Минеральные вещества
D29: Белки | E29: Жиры | F29: Углеводы | H29: B1 | I29: B2 | J29: A | K29: D | L29: C | M29: Na | N29: K | O29: Ca | P29: Mg | Q29: P | R29: Fe | S29: I | T29: Se | U29: F
C30: г | D30: г | E30: г | F30: г | G30: ккал | H30: мг | I30: мг | J30: мкг рет.экв | K30: мкг | L30: мг | M30: мг | N30: мг | O30: мг | P30: мг | Q30: мг | R30: мг | S30: мкг | T30: мкг | U30: мкг
B31: Вторник, 1 неделя
B32: Буфет | C32: 7-11
A33: 54-13к-2020 | B33: Каша вязкая молочная пшеничная | C33: 150 | D33: 6.1 | E33: 6.9 | F33: 29 | G33: 202.7 | H33: 0.1 | I33: 0.13 | J33: 30.74 | K33: 0.1 | L33: 0.41 | M33: 256.57 | N33: 169.91 | O33: 113.68 | P33: 29.4 | Q33: 154.74 | R33: 1.64 | S33: 37.16 | T33: 24.8 | U33: 16.11
A34: 54-1гн-2020 | B34: Чай без сахара | C34: 150 | D34: 0.1 | E34: 0 | F34: 0 | G34: 1.1 | H34: 0 | I34: 0.01 | J34: 0.23 | K34: 0 | L34: 0.03 | M34: 0.47 | N34: 15.44 | O34: 49.47 | P34: 2.87 | Q34: 5.38 | R34: 0.54 | S34: 0 | T34: 0 | U34: 0
B35: Итого за буфет | C35: 300 | D35: 6.2 | E35: 6.9 | F35: 29 | G35: 203.8 | H35: 0.1 | I35: 0.14 | J35: 30.97 | K35: 0.1 | L35: 0.44 | M35: 257.04 | N35: 185.35 | O35: 163.15 | P35: 32.27 | Q35: 160.12 | R35: 2.18 | S35: 37.16 | T35: 24.8 | U35: 16.11
B36: Горячий завтрак | C36: 7-11
A37: 54-16з-2020 | B37: Винегрет с растительным маслом | C37: 60 | D37: 0.7 | E37: 5.4 | F37: 4 | G37: 67.1 | H37: 0.02 | I37: 0.02 | J37: 72.89 | K37: 0 | L37: 2.26 | M37: 200.99 | N37: 127.85 | O37: 12.1 | P37: 9.66 | Q37: 21.4 | R37: 0.41 | S37: 7.86 | T37: 0.13 | U37: 11.85
A38: 54-22м-2020 | B38: Рагу из курицы | C38: 140/60 | D38: 21 | E38: 7 | F38: 17.5 | G38: 217.3 | H38: 0.14 | I38: 0.11 | J38: 259.68 | K38: 0 | L38: 11.25 | M38: 281.38 | N38: 738.57 | O38: 32.19 | P38: 93.35 | Q38: 192.51 | R38: 2.13 | S38: 42.97 | T38: 17.04 | U38: 156.36
A39: 54-21гн-2020 | B39: Какао с молоком | C39: 200 | D39: 4.7 | E39: 3.5 | F39: 12.5 | G39: 100.4 | H39: 0.04 | I39: 0.16 | J39: 17.25 | K39: 0 | L39: 0.68 | M39: 49.95 | N39: 220.33 | O39: 167.68 | P39: 34.32 | Q39: 130.28 | R39: 1.09 | S39: 11.7 | T39: 2.29 | U39: 38.25
A40: 54-10в-2020 | B40: Булочка ванильная | C40: 50 | D40: 3.9 | E40: 3.37 | F40: 25.37 | G40: 147.4 | H40: 0.04 | I40: 0.02 | J40: 15.93 | K40: 0.12 | L40: 0 | M40: 200 | N40: 41 | O40: 14 | P40: 5 | Q40: 33 | R40: 0.5 | S40: 27.814 | T40: 2.6 | U40: 9.19
A41: Пром. | B41: Хлеб пшеничный | C41: 30 | D41: 2.3 | E41: 0.2 | F41: 14.8 | G41: 70.3 | H41: 0.03 | I41: 0.01 | J41: 0 | K41: 0 | L41: 0 | M41: 149.7 | N41: 27.9 | O41: 6 | P41: 4.2 | Q41: 19.5 | R41: 0.33 | S41: 0.96 | T41: 1.8 | U41: 4.35
A42: Пром. | B42: Хлеб ржаной | C42: 20 | D42: 1.3 | E42: 0.2 | F42: 6.7 | G42: 34.2 | H42: 0.04 | I42: 0.02 | J42: 0 | K42: 0 | L42: 0 | M42: 122 | N42: 49 | O42: 7 | P42: 9.4 | Q42: 31.6 | R42: 0.78 | S42: 0 | T42: 6.18 | U42: 0
B43: Итого за Завтрак | C43: 560 | D43: =SUM(D37:D42) -> 33.9 | E43: =SUM(E37:E42) -> 19.67 | F43: 80.87 | G43: 636.7 | H43: 0.31 | I43: 0.34 | J43: 365.75 | K43: 0.12 | L43: 14.19 | M43: 1004.02 | N43: 1204.65 | O43: 238.97 | P43: 155.93 | Q43: 428.29 | R43: 5.24 | S43: 91.304 | T43: 30.04 | U43: 220
B44: Итого за день | C44: 860 | D44: =D43+D35 -> 40.1 | E44: =E43+E35 -> 26.57 | F44: 109.87 | G44: 840.5 | H44: 0.41 | I44: 0.48 | J44: 396.72 | K44: 0.22 | L44: 14.63 | M44: 1261.06 | N44: 1390 | O44: 402.12 | P44: 188.2 | Q44: 588.41 | R44: 7.42 | S44: 128.464 | T44: 54.84 | U44: 236.11
A46: 3 день, 1 неделя
A47: № рецептуры | B47: Прием пищи, наименование блюда | C47: Масса | D47: Пищевые вещества | G47: Энергетическая ценность | H47: Витамины | M47: Минеральные вещества
D48: Белки | E48: Жиры | F48: Углеводы | H48: B1 | I48: B2 | J48: A | K48: D | L48: C | M48: Na | N48: K | O48: Ca | P48: Mg | Q48: P | R48: Fe | S48: I | T48: Se | U48: F
C49: г | D49: г | E49: г | F49: г | G49: ккал | H49: мг | I49: мг | J49: мкг рет.экв | K49: мкг | L49: мг | M49: мг | N49: мг | O49: мг | P49: мг | Q49: мг | R49: мг | S49: мкг | T49: мкг | U49: мкг
B50: Среда, 1 неделя
B51: Буфет | C51: 7-11
A52: 54-4гн-2020 | B52: Чай с молоком и сахаром | C52: 150 | D52: 1.2 | E52: 0.9 | F52: 6.5 | G52: 38.2 | H52: 0.01 | I52: 0.05 | J52: 5.18 | K52: 0 | L52: 0.23 | M52: 14.76 | N52: 61.01 | O52: 77.61 | P52: 7.44 | Q52: 34.75 | R52: 0.58 | S52: 3.38 | T52: 0.66 | U52: 7.5
A53: Пром. | B53: Сушка простая | C53: 20 | D53: 2.2 | E53: 0.3 | F53: 13.8 | G53: 66.1 | H53: 0.05 | I53: 0.01 | J53: 0 | K53: 0 | L53: 0 | M53: 121 | N53: 37 | O53: 6 | P53: 9.2 | Q53: 24.2 | R53: 0.58 | S53: 0 | T53: 0 | U53: 0
B54: Итого за буфет | C54: 170 | D54: 3.4 | E54: 1.2 | F54: 20.3 | G54: 104.3 | H54: 0.06 | I54: 0.06 | J54: 5.18 | K54: 0 | L54: 0.23 | M54: 135.76 | N54: 98.01 | O54: 83.61 | P54: 16.64 | Q54: 58.95 | R54: 1.16 | S54: 3.38 | T54: 0.66 | U54: 7.5
B55: Горячий завтрак | C55: 7-11
A56: ном.рец №40 | B56: Салат картофельный с морковью, зеленым горошком и растительным маслом | C56: 60 | D56: 1.6 | E56: 4.3 | F56: 5.9 | G56: 68.7 | H56: 0 | I56: 0 | J56: 0.4 | K56: 0 | L56: 3.9 | M56: 0 | N56: 0 | O56: 14.8 | P56: 13.9 | Q56: 37 | R56: 0.7 | S56: 0 | T56: 0 | U56: 0
A57: 54-1г-2020 | B57: Макароны отварные | C57: 150 | D57: 5.3 | E57: 4.9 | F57: 32.8 | G57: 196.8 | H57: 0.06 | I57: 0.02 | J57: 18.36 | K57: 0.09 | L57: 0 | M57: 149.04 | N57: 53.8 | O57: 105.83 | P57: 7.19 | Q57: 40.7 | R57: 0.73 | S57: 20.77 | T57: 0.06 | U57: 11.92
A58: №243 | B58: Сосиски говяжьи отварные, п/ф (2 шт) | C58: 100 | D58: 13.2 | E58: 22.84 | F58: 1.8 | G58: 247.15 | H58: 0 | I58: 0 | J58: 0.08 | K58: 0.01 | L58: 0 | M58: 0 | N58: 0 | O58: 7.44 | P58: 15.51 | Q58: 137.39 | R58: 1.74 | S58: 0 | T58: 0 | U58: 0
A59: Пром. | B59: Апельсин | C59: 100 | D59: 1.71 | E59: 0.38 | F59: 15.39 | G59: 71.8 | H59: 0.08 | I59: 0.06 | J59: 15.2 | K59: 0 | L59: 114 | M59: 25 | N59: 374 | O59: 65 | P59: 25 | Q59: 44 | R59: 0.6 | S59: 3.8 | T59: 0.9 | U59: 32.3
A60: 54-3гн-2020 | B60: Чай с лимоном и сахаром | C60: 207 | D60: 0.2 | E60: 0.1 | F60: 6.6 | G60: 27.9 | H60: 0 | I60: 0.01 | J60: 0.38 | K60: 0 | L60: 1.16 | M60: 1.26 | N60: 30.23 | O60: 67 | P60: 4.56 | Q60: 8.52 | R60: 0.77 | S60: 0.01 | T60: 0.02 | U60: 0.7
A61: Пром. | B61: Хлеб ржаной | C61: 20 | D61: 1.3 | E61: 0.2 | F61: 6.7 | G61: 34.2 | H61: 0.04 | I61: 0.02 | J61: 0 | K61: 0 | L61: 0 | M61: 122 | N61: 49 | O61: 7 | P61: 9.4 | Q61: 31.6 | R61: 0.78 | S61: 0 | T61: 6.18 | U61: 0
A62: Пром. | B62: Хлеб пшеничный | C62: 30 | D62: 2.3 | E62: 0.2 | F62: 14.8 | G62: 70.3 | H62: 0.03 | I62: 0.01 | J62: 0 | K62: 0 | L62: 0 | M62: 149.7 | N62: 27.9 | O62: 6 | P62: 4.2 | Q62: 19.5 | R62: 0.33 | S62: 0.96 | T62: 1.8 | U62: 4.35
B63: Итого за Завтрак | C63: =SUM(C56:C62) -> 667 | D63: =SUM(D56:D62) -> 25.61 | E63: =SUM(E56:E62) -> 32.92 | F63: 83.99 | G63: 716.85 | H63: 0.21 | I63: 0.12 | J63: 34.42 | K63: 0.1 | L63: 119.06 | M63: 447 | N63: 534.93 | O63: 273.07 | P63: 79.76 | Q63: 318.71 | R63: 5.65 | S63: 25.54 | T63: 8.96 | U63: 49.27
B64: Итого за день | C64: =C63+C54 -> 837 | D64: =D63+D54 -> 29.01 | E64: =E63+E54 -> 34.12 | F64: 104.29 | G64: 821.15 | H64: 0.27 | I64: 0.18 | J64: 39.6 | K64: 0.1 | L64: 119.29 | M64: 582.76 | N64: 632.94 | O64: 356.68 | P64: 96.4 | Q64: 377.66 | R64: 6.81 | S64: 28.92 | T64: 9.62 | U64: 56.77
A66: 4 день, 1 неделя
A67: № рецептуры | B67: Прием пищи, наименование блюда | C67: Масса | D67: Пищевые вещества | G67: Энергетическая ценность | H67: Витамины | M67: Минеральные вещества
D68: Белки | E68: Жиры | F68: Углеводы | H68: B1 | I68: B2 | J68: A | K68: D | L68: C | M68: Na | N68: K | O68: Ca | P68: Mg | Q68: P | R68: Fe | S68: I | T68: Se | U68: F
C69: г | D69: г | E69: г | F69: г | G69: ккал | H69: мг | I69: мг | J69: мкг рет.экв | K69: мкг | L69: мг | M69: мг | N69: мг | O69: мг | P69: мг | Q69: мг | R69: мг | S69: мкг | T69: мкг | U69: мкг
B70: Четверг, 1 неделя
B71: Буфет | C71: 7-11
A72: 54-6к-2020 | B72: Каша вязкая молочная пшенная | C72: 150 | D72: 6.2 | E72: 7.6 | F72: 28.2 | G72: 206.2 | H72: 0.14 | I72: 0.11 | J72: 31.22 | K72: 0.1 | L72: 0.41 | M72: 254.01 | N72: 162.17 | O72: 107.34 | P72: 36.72 | Q72: 139.54 | R72: 0.99 | S72: 38.71 | T72: 2.33 | U72: 26.31
A73: 54-1гн-2020 | B73: Чай без сахара | C73: 150 | D73: 0.1 | E73: 0 | F73: 0 | G73: 1.1 | H73: 0 | I73: 0.01 | J73: 0.23 | K73: 0 | L73: 0.03 | M73: 0.47 | N73: 15.44 | O73: 49.47 | P73: 2.87 | Q73: 5.38 | R73: 0.54 | S73: 0 | T73: 0 | U73: 0
B74: Итого за буфет | C74: 300 | D74: 6.3 | E74: 7.6 | F74: 28.2 | G74: 207.3 | H74: 0.14 | I74: 0.12 | J74: 31.45 | K74: 0.1 | L74: 0.44 | M74: 254.48 | N74: 177.61 | O74: 156.81 | P74: 39.59 | Q74: 144.92 | R74: 1.53 | S74: 38.71 | T74: 2.33 | U74: 26.31
B75: Горячий завтрак | C75: 7-11
A76: 54-13з-2020 | B76: Салат из свеклы отварной с растительным маслом | C76: 60 | D76: 0.8 | E76: 2.7 | F76: 4.6 | G76: 45.6 | H76: 0.01 | I76: 0.02 | J76: 0.68 | K76: 0 | L76: 2.28 | M76: 78.77 | N76: 136.27 | O76: 19.21 | P76: 10.95 | Q76: 21.51 | R76: 0.7 | S76: 11.99 | T76: 0.35 | U76: 11.4
A77: 54-11г-2020 | B77: Картофельное пюре | C77: 150 | D77: 3.1 | E77: 5.3 | F77: 19.8 | G77: 139.4 | H77: 0.12 | I77: 0.11 | J77: 23.8 | K77: 0.09 | L77: 10.2 | M77: 161.78 | N77: 624.83 | O77: 39.49 | P77: 28.23 | Q77: 84.47 | R77: 1.03 | S77: 28.46 | T77: 0.78 | U77: 42.79
A78: ном.рец №608 | B78: Котлета мясная Любительская, полуфабрикат в соусе | C78: 65/35 | D78: 10.04 | E78: 12.79 | F78: 8.12 | G78: 187.9 | H78: 0 | I78: 0 | J78: 38.45 | K78: 0.01 | L78: 1.15 | M78: 3 | N78: 43 | O78: 45.75 | P78: 35.13 | Q78: 173.38 | R78: 1.6 | S78: 0 | T78: 0 | U78: 0
A79: 54-2гн-2020 | B79: Кофейный напиток с молоком | C79: 200 | D79: 3.9 | E79: 2.9 | F79: 11.2 | G79: 86 | H79: 0.03 | I79: 0.13 | J79: 13.29 | K79: 0 | L79: 0.52 | M79: 38.55 | N79: 183.98 | O79: 148.32 | P79: 30.67 | Q79: 106.79 | R79: 1.06 | S79: 9 | T79: 1.76 | U79: 20
A80: Пром. | B80: Хлеб ржаной | C80: 20 | D80: 1.3 | E80: 0.2 | F80: 6.7 | G80: 34.2 | H80: 0.04 | I80: 0.02 | J80: 0 | K80: 0 | L80: 0 | M80: 122 | N80: 49 | O80: 7 | P80: 9.4 | Q80: 31.6 | R80: 0.78 | S80: 0 | T80: 6.18 | U80: 0
A81: Пром. | B81: Хлеб пшеничный | C81: 30 | D81: 2.3 | E81: 0.2 | F81: 14.8 | G81: 70.3 | H81: 0.03 | I81: 0.01 | J81: 0 | K81: 0 | L81: 0 | M81: 149.7 | N81: 27.9 | O81: 6 | P81: 4.2 | Q81: 19.5 | R81: 0.33 | S81: 0.96 | T81: 1.8 | U81: 4.35
B82: Итого за Завтрак | C82: 560 | D82: =SUM(D76:D81) -> 21.44 | E82: 24.09 | F82: 65.22 | G82: 563.4 | H82: 0.23 | I82: 0.29 | J82: 76.22 | K82: 0.1 | L82: 14.15 | M82: 553.8 | N82: 1064.98 | O82: 265.77 | P82: 118.58 | Q82: 437.25 | R82: 5.5 | S82: 50.41 | T82: 10.87 | U82: 78.54
B83: Итого за день | C83: =C82+C74 -> 860 | D83: =D82+D74 -> 27.74 | E83: 31.69 | F83: 93.42 | G83: 770.7 | H83: 0.37 | I83: 0.41 | J83: 107.67 | K83: 0.2 | L83: 14.59 | M83: 808.28 | N83: 1242.59 | O83: 422.58 | P83: 158.17 | Q83: 582.17 | R83: 7.03 | S83: 89.12 | T83: 13.2 | U83: 104.85
A85: 5 день, 1 неделя
A86: № рецептуры | B86: Прием пищи, наименование блюда | C86: Масса | D86: Пищевые вещества | G86: Энергетическая ценность | H86: Витамины | M86: Минеральные вещества
D87: Белки | E87: Жиры | F87: Углеводы | H87: B1 | I87: B2 | J87: A | K87: D | L87: C | M87: Na | N87: K | O87: Ca | P87: Mg | Q87: P | R87: Fe | S87: I | T87: Se | U87: F
C88: г | D88: г | E88: г | F88: г | G88: ккал | H88: мг | I88: мг | J88: мкг рет.экв | K88: мкг | L88: мг | M88: мг | N88: мг | O88: мг | P88: мг | Q88: мг | R88: мг | S88: мкг | T88: мкг | U88: мкг
B89: Пятница, 1 неделя
B90: Буфет | C90: 7-11
A91: 54-1г-2020 | B91: Макароны отварные | C91: 150 | D91: 5.3 | E91: 4.9 | F91: 32.8 | G91: 196.8 | H91: 0.06 | I91: 0.02 | J91: 18.36 | K91: 0.09 | L91: 0 | M91: 149.04 | N91: 53.8 | O91: 105.83 | P91: 7.19 | Q91: 40.7 | R91: 0.73 | S91: 20.77 | T91: 0.06 | U91: 11.92
A92: 54-2гн-2020 | B92: Чай с сахаром | C92: 150 | D92: 0.1 | E92: 0 | F92: 4.8 | G92: 20.1 | H92: 0 | I92: 0.01 | J92: 0.23 | K92: 0 | L92: 0.03 | M92: 0.51 | N92: 15.57 | O92: 49.56 | P92: 2.87 | Q92: 5.38 | R92: 0.55 | S92: 0 | T92: 0 | U92: 0
B93: Итого за буфет | C93: 300 | D93: 5.4 | E93: 4.9 | F93: 37.6 | G93: 216.9 | H93: 0.06 | I93: 0.03 | J93: 18.59 | K93: 0.09 | L93: 0.03 | M93: 149.55 | N93: 69.37 | O93: 155.39 | P93: 10.06 | Q93: 46.08 | R93: 1.28 | S93: 20.77 | T93: 0.06 | U93: 11.92
B94: Горячий завтрак | C94: 7-11
A95: ном.рец №41 | B95: Салат из отварной моркови с яблоками с растительным маслом | C95: 60 | D95: 0.6 | E95: 5.9 | F95: 4.6 | G95: 74.7 | H95: 0 | I95: 0 | J95: 0.7 | K95: 0 | L95: 1.4 | M95: 0 | N95: 0 | O95: 19.1 | P95: 13.6 | Q95: 19.6 | R95: 0.8 | S95: 0 | T95: 0 | U95: 0
A96: 54-6г-2020 | B96: Плов из говядины | C96: 160/40 | D96: 15.32 | E96: 14.73 | F96: 38.58 | G96: 348.3 | H96: 0.07 | I96: 0.12 | J96: 261.6 | K96: 0.1 | L96: 0.08 | M96: 276 | N96: 267 | O96: 117 | P96: 44 | Q96: 194 | R96: 2.2 | S96: 38.67 | T96: 7.3 | U96: 81.72
A97: 54-4гн-2020 | B97: Компот из кураги | C97: 200 | D97: 0.98 | E97: 0.05 | F97: 15.64 | G97: 66.9 | H97: 0.01 | I97: 0.03 | J97: 69.96 | K97: 0 | L97: 0 | M97: 3 | N97: 285 | O97: 90 | P97: 18 | Q97: 25 | R97: 0.6 | S97: 0 | T97: 0 | U97: 0
A98: Пром. | B98: Хлеб ржаной | C98: 20 | D98: 1.3 | E98: 0.2 | F98: 6.7 | G98: 34.2 | H98: 0.04 | I98: 0.02 | J98: 0 | K98: 0 | L98: 0 | M98: 122 | N98: 49 | O98: 7 | P98: 9.4 | Q98: 31.6 | R98: 0.78 | S98: 0 | T98: 6.18 | U98: 0
A99: Пром. | B99: Хлеб пшеничный | C99: 30 | D99: 2.3 | E99: 0.2 | F99: 14.8 | G99: 70.3 | H99: 0.03 | I99: 0.01 | J99: 0 | K99: 0 | L99: 0 | M99: 149.7 | N99: 27.9 | O99: 6 | P99: 4.2 | Q99: 19.5 | R99: 0.33 | S99: 0.96 | T99: 1.8 | U99: 4.35
B100: Итого за Завтрак | C100: 510 | D100: =SUM(D95:D99) -> 20.5 | E100: =SUM(E95:E99) -> 21.08 | F100: 80.32 | G100: 594.4 | H100: 0.15 | I100: 0.18 | J100: 332.26 | K100: 0.1 | L100: 1.48 | M100: 550.7 | N100: 628.9 | O100: 239.1 | P100: 89.2 | Q100: 289.7 | R100: 4.71 | S100: 39.63 | T100: 15.28 | U100: 86.07
B101: Итого за день | C101: =C100+C93 -> 810 | D101: 25.9 | E101: 25.98 | F101: 117.92 | G101: 811.3 | H101: 0.21 | I101: 0.21 | J101: 350.85 | K101: 0.19 | L101: 1.51 | M101: 700.25 | N101: 698.27 | O101: 394.49 | P101: 99.26 | Q101: 335.78 | R101: 5.99 | S101: 60.4 | T101: 15.34 | U101: 97.99
A103: 6 день, 1 неделя
A104: № рецептуры | B104: Прием пищи, наименование блюда | C104: Масса | D104: Пищевые вещества | G104: Энергетическая ценность | H104: Витамины | M104: Минеральные вещества
D105: Белки | E105: Жиры | F105: Углеводы | H105: B1 | I105: B2 | J105: A | K105: D | L105: C | M105: Na | N105: K | O105: Ca | P105: Mg | Q105: P | R105: Fe | S105: I | T105: Se | U105: F
C106: г | D106: г | E106: г | F106: г | G106: ккал | H106: мг | I106: мг | J106: мкг рет.экв | K106: мкг | L106: мг | M106: мг | N106: мг | O106: мг | P106: мг | Q106: мг | R106: мг | S106: мкг | T106: мкг | U106: мкг
B107: Суббота, 1 неделя
B108: Буфет | C108: 7-11
A109: 54-3гн-2020 | B109: Чай с лимоном и сахаром | C109: 155 | D109: 0.2 | E109: 0 | F109: 5 | G109: 20.9 | H109: 0 | I109: 0.01 | J109: 0.29 | K109: 0 | L109: 0.87 | M109: 0.95 | N109: 22.67 | O109: 50.25 | P109: 3.42 | Q109: 6.39 | R109: 0.58 | S109: 0.01 | T109: 0.02 | U109: 0.53
A110: Пром. | B110: Сушка простая | C110: 20 | D110: 2.2 | E110: 0.3 | F110: 13.8 | G110: 66.1 | H110: 0.05 | I110: 0.01 | J110: 0 | K110: 0 | L110: 0 | M110: 121 | N110: 37 | O110: 6 | P110: 9.2 | Q110: 24.2 | R110: 0.58 | S110: 0 | T110: 0 | U110: 0
B111: Итого за буфет | C111: 175 | D111: 2.4 | E111: 0.3 | F111: 18.8 | G111: 87 | H111: 0.05 | I111: 0.02 | J111: 0.29 | K111: 0 | L111: 0.87 | M111: 121.95 | N111: 59.67 | O111: 56.25 | P111: 12.62 | Q111: 30.59 | R111: 1.16 | S111: 0.01 | T111: 0.02 | U111: 0.53
B112: Горячий завтрак | C112: 7-11
A113: 54-16з-2020 | B113: Винегрет с растительным маслом | C113: 60 | D113: 0.7 | E113: 5.4 | F113: 4 | G113: 67.1 | H113: 0.02 | I113: 0.02 | J113: 72.89 | K113: 0 | L113: 2.26 | M113: 200.99 | N113: 127.85 | O113: 12.1 | P113: 9.66 | Q113: 21.4 | R113: 0.41 | S113: 7.86 | T113: 0.13 | U113: 11.85
A114: 54-21г-2000 | B114: Горошница | C114: 150 | D114: 14.45 | E114: 1.32 | F114: 33.78 | G114: 204.8 | H114: 0.44 | I114: 0.09 | J114: 0.9 | K114: 0 | L114: 0 | M114: 166 | N114: 543 | O114: 125 | P114: 70 | Q114: 215 | R114: 4.4 | S114: 23.82 | T114: 8.6 | U114: 22.5
A115: № рец. 290 | B115: Птица тушеная в соусе | C115: 50/50 | D115: 13.8 | E115: 14.8 | F115: 3.9 | G115: 211 | H115: 0.1 | I115: 0 | J115: 0 | K115: 0 | L115: 1.5 | M115: 0 | N115: 0 | O115: 26.4 | P115: 16.6 | Q115: 115.3 | R115: 0.9 | S115: 0 | T115: 0 | U115: 0
A116: 54-23гн-2020 | B116: Кофейный напиток с молоком | C116: 200 | D116: 3.9 | E116: 2.9 | F116: 11.2 | G116: 86 | H116: 0.03 | I116: 0.13 | J116: 13.29 | K116: 0 | L116: 0.52 | M116: 38.55 | N116: 183.98 | O116: 148.32 | P116: 30.67 | Q116: 106.79 | R116: 1.06 | S116: 9 | T116: 1.76 | U116: 20
A117: Пром. | B117: Хлеб пшеничный | C117: 30 | D117: 2.3 | E117: 0.2 | F117: 14.8 | G117: 70.3 | H117: 0.03 | I117: 0.01 | J117: 0 | K117: 0 | L117: 0 | M117: 149.7 | N117: 27.9 | O117: 6 | P117: 4.2 | Q117: 19.5 | R117: 0.33 | S117: 0.96 | T117: 1.8 | U117: 4.35
A118: Пром. | B118: Хлеб ржаной | C118: 20 | D118: 1.3 | E118: 0.2 | F118: 6.7 | G118: 34.2 | H118: 0.04 | I118: 0.02 | J118: 0 | K118: 0 | L118: 0 | M118: 122 | N118: 49 | O118: 7 | P118: 9.4 | Q118: 31.6 | R118: 0.78 | S118: 0 | T118: 6.18 | U118: 0
B119: Итого за Завтрак | C119: 560 | D119: =SUM(D113:D118) -> 36.45 | E119: 24.82 | F119: 74.38 | G119: 673.4 | H119: 0.66 | I119: 0.27 | J119: 87.08 | K119: 0 | L119: 4.28 | M119: 677.24 | N119: 931.73 | O119: 324.82 | P119: 140.53 | Q119: 509.59 | R119: 7.88 | S119: 41.64 | T119: 18.47 | U119: 58.7
B120: Итого за день | C120: =C119+C111 -> 735 | D120: =D119+D111 -> 38.85 | E120: =E119+E111 -> 25.12 | F120: 93.18 | G120: 760.4 | H120: 0.71 | I120: 0.29 | J120: 87.37 | K120: 0 | L120: 5.15 | M120: 799.19 | N120: 991.4 | O120: 381.07 | P120: 153.15 | Q120: 540.18 | R120: 9.04 | S120: 41.65 | T120: 18.49 | U120: 59.23
A122: 7 день, 2 неделя
A123: № рецептуры | B123: Прием пищи, наименование блюда | C123: Масса | D123: Пищевые вещества | G123: Энергетическая ценность | H123: Витамины | M123: Минеральные вещества
D124: Белки | E124: Жиры | F124: Углеводы | H124: B1 | I124: B2 | J124: A | K124: D | L124: C | M124: Na | N124: K | O124: Ca | P124: Mg | Q124: P | R124: Fe | S124: I | T124: Se | U124: F
C125: г | D125: г | E125: г | F125: г | G125: ккал | H125: мг | I125: мг | J125: мкг рет.экв | K125: мкг | L125: мг | M125: мг | N125: мг | O125: мг | P125: мг | Q125: мг | R125: мг | S125: мкг | T125: мкг | U125: мкг
B126: Понедельник, 2 неделя
B127: Буфет | C127: 7-11
A128: 54-21гн-2020 | B128: Какао с молоком | C128: 150 | D128: 3.5 | E128: 2.6 | F128: 9.4 | G128: 75.3 | H128: 0.03 | I128: 0.12 | J128: 12.94 | K128: 0 | L128: 0.51 | M128: 37.46 | N128: 165.25 | O128: 125.76 | P128: 25.74 | Q128: 97.71 | R128: 0.82 | S128: 8.78 | T128: 1.72 | U128: 28.69
A129: Пром. | B129: Сушка простая | C129: 20 | D129: 2.2 | E129: 0.3 | F129: 13.8 | G129: 66.1 | H129: 0.05 | I129: 0.01 | J129: 0 | K129: 0 | L129: 0 | M129: 121 | N129: 37 | O129: 6 | P129: 9.2 | Q129: 24.2 | R129: 0.58 | S129: 0 | T129: 0 | U129: 0
B130: Итого за буфет | C130: 170 | D130: 5.7 | E130: 2.9 | F130: 23.2 | G130: 141.4 | H130: 0.08 | I130: 0.13 | J130: 12.94 | K130: 0 | L130: 0.51 | M130: 158.46 | N130: 202.25 | O130: 131.76 | P130: 34.94 | Q130: 121.91 | R130: 1.4 | S130: 8.78 | T130: 1.72 | U130: 28.69
B131: Горячий завтрак | C131: 7-11
A132: ном.рец №40 | B132: Салат картофельный с морковью, зеленым горошком и растительным маслом | C132: 60 | D132: 1.6 | E132: 4.3 | F132: 5.9 | G132: 68.7 | H132: 0 | I132: 0 | J132: 0.4 | K132: 0 | L132: 3.9 | M132: 0 | N132: 0 | O132: 14.8 | P132: 13.9 | Q132: 37 | R132: 0.7 | S132: 0 | T132: 0 | U132: 0
A133: 54-4г-2020 | B133: Каша гречневая рассыпчатая | C133: 150 | D133: 8.2 | E133: 6.3 | F133: 35.9 | G133: 233.7 | H133: 0.21 | I133: 0.12 | J133: 19.19 | K133: 0.09 | L133: 0 | M133: 149.45 | N133: 219.36 | O133: 46.62 | P133: 120.16 | Q133: 180.99 | R133: 4.05 | S133: 22.28 | T133: 3.52 | U133: 16.06
A134: ном.рец №608 | B134: Котлета мясная Любительская, полуфабрикат в соусе | C134: 65/35 | D134: 10.04 | E134: 12.79 | F134: 8.12 | G134: 187.9 | H134: 0 | I134: 0 | J134: 38.45 | K134: 0.01 | L134: 1.15 | M134: 3 | N134: 43 | O134: 45.75 | P134: 35.13 | Q134: 173.38 | R134: 1.6 | S134: 0 | T134: 0 | U134: 0
A135: 54-2гн-2020 | B135: Чай с сахаром | C135: 200 | D135: 0.2 | E135: 0 | F135: 6.4 | G135: 26.8 | H135: 0 | I135: 0.01 | J135: 0.3 | K135: 0 | L135: 0.04 | M135: 0.68 | N135: 20.76 | O135: 66.08 | P135: 3.83 | Q135: 7.18 | R135: 0.73 | S135: 0 | T135: 0 | U135: 0
A136: Пром. | B136: Хлеб пшеничный | C136: 30 | D136: 2.3 | E136: 0.2 | F136: 14.8 | G136: 70.3 | H136: 0.03 | I136: 0.01 | J136: 0 | K136: 0 | L136: 0 | M136: 149.7 | N136: 27.9 | O136: 6 | P136: 4.2 | Q136: 19.5 | R136: 0.33 | S136: 0.96 | T136: 1.8 | U136: 4.35
A137: Пром. | B137: Хлеб ржаной | C137: 20 | D137: 1.3 | E137: 0.2 | F137: 6.7 | G137: 34.2 | H137: 0.04 | I137: 0.02 | J137: 0 | K137: 0 | L137: 0 | M137: 122 | N137: 49 | O137: 7 | P137: 9.4 | Q137: 31.6 | R137: 0.78 | S137: 0 | T137: 6.18 | U137: 0
B138: Итого за Завтрак | C138: 560 | D138: =SUM(D132:D137) -> 23.64 | E138: 23.79 | F138: 77.82 | G138: 621.6 | H138: 0.28 | I138: 0.16 | J138: 58.34 | K138: 0.1 | L138: 5.09 | M138: 424.83 | N138: 360.02 | O138: 186.25 | P138: 186.62 | Q138: 449.65 | R138: 8.19 | S138: 23.24 | T138: 11.5 | U138: 20.41
B139: Итого за день | C139: =C138+C130 -> 730 | D139: 29.34 | E139: 26.69 | F139: 101.02 | G139: 763 | H139: 0.36 | I139: 0.29 | J139: 71.28 | K139: 0.1 | L139: 5.6 | M139: 583.29 | N139: 562.27 | O139: 318.01 | P139: 221.56 | Q139: 571.56 | R139: 9.59 | S139: 32.02 | T139: 13.22 | U139: 49.1
A141: 8 день, 2 неделя
A142: № рецептуры | B142: Прием пищи, наименование блюда | C142: Масса | D142: Пищевые вещества | G142: Энергетическая ценность | H142: Витамины | M142: Минеральные вещества
D143: Белки | E143: Жиры | F143: Углеводы | H143: B1 | I143: B2 | J143: A | K143: D | L143: C | M143: Na | N143: K | O143: Ca | P143: Mg | Q143: P | R143: Fe | S143: I | T143: Se | U143: F
C144: г | D144: г | E144: г | F144: г | G144: ккал | H144: мг | I144: мг | J144: мкг рет.экв | K144: мкг | L144: мг | M144: мг | N144: мг | O144: мг | P144: мг | Q144: мг | R144: мг | S144: мкг | T144: мкг | U144: мкг
B145: Вторник, 2 неделя
B146: Буфет | C146: 7-11
A147: 54-13к-2020 | B147: Каша вязкая молочная пшеничная | C147: 150 | D147: 6.1 | E147: 6.9 | F147: 29 | G147: 202.7 | H147: 0.1 | I147: 0.13 | J147: 30.74 | K147: 0.1 | L147: 0.41 | M147: 256.57 | N147: 169.91 | O147: 113.68 | P147: 29.4 | Q147: 154.74 | R147: 1.64 | S147: 37.16 | T147: 24.8 | U147: 16.11
A148: 54-1гн-2020 | B148: Чай без сахара | C148: 150 | D148: 0.1 | E148: 0 | F148: 0 | G148: 1.1 | H148: 0 | I148: 0.01 | J148: 0.23 | K148: 0 | L148: 0.03 | M148: 0.47 | N148: 15.44 | O148: 49.47 | P148: 2.87 | Q148: 5.38 | R148: 0.54 | S148: 0 | T148: 0 | U148: 0
B149: Итого за буфет | C149: 300 | D149: 6.2 | E149: 6.9 | F149: 29 | G149: 203.8 | H149: 0.1 | I149: 0.14 | J149: 30.97 | K149: 0.1 | L149: 0.44 | M149: 257.04 | N149: 185.35 | O149: 163.15 | P149: 32.27 | Q149: 160.12 | R149: 2.18 | S149: 37.16 | T149: 24.8 | U149: 16.11
B150: Горячий завтрак | C150: 7-11
A151: 54-13з-2020 | B151: Салат из свеклы отварной с растительным маслом | C151: 60 | D151: 0.8 | E151: 2.7 | F151: 4.6 | G151: 45.6 | H151: 0.01 | I151: 0.02 | J151: 0.68 | K151: 0 | L151: 2.28 | M151: 78.77 | N151: 136.27 | O151: 19.21 | P151: 10.95 | Q151: 21.51 | R151: 0.7 | S151: 11.99 | T151: 0.35 | U151: 11.4
A152: 54-12м-2020 | B152: Плов с курицей | C152: 150/50 | D152: 18.5 | E152: 7.4 | F152: 33.1 | G152: 273.2 | H152: 0.07 | I152: 0.06 | J152: 144.87 | K152: 0 | L152: 2.08 | M152: 272.9 | N152: 287.76 | O152: 72.64 | P152: 78.85 | Q152: 174.89 | R152: 1.53 | S152: 37.41 | T152: 19.63 | U152: 118.1
A153: 54-3гн-2020 | B153: Чай с лимоном и сахаром | C153: 207 | D153: 0.2 | E153: 0.1 | F153: 6.6 | G153: 27.9 | H153: 0 | I153: 0.01 | J153: 0.38 | K153: 0 | L153: 1.16 | M153: 1.26 | N153: 30.23 | O153: 67 | P153: 4.56 | Q153: 8.52 | R153: 0.77 | S153: 0.01 | T153: 0.02 | U153: 0.7
A154: 54-10в-2020 | B154: Булочка ванильная | C154: 50 | D154: 3.9 | E154: 3.37 | F154: 25.39 | G154: 147.4 | H154: 0.04 | I154: 0.02 | J154: 15.93 | K154: 0.12 | L154: 0 | M154: 200 | N154: 41 | O154: 14 | P154: 5 | Q154: 33 | R154: 0.5 | S154: 27.81 | T154: 2.6 | U154: 9.19
A155: Пром. | B155: Хлеб пшеничный | C155: 30 | D155: 2.3 | E155: 0.2 | F155: 14.8 | G155: 70.3 | H155: 0.03 | I155: 0.01 | J155: 0 | K155: 0 | L155: 0 | M155: 149.7 | N155: 27.9 | O155: 6 | P155: 4.2 | Q155: 19.5 | R155: 0.33 | S155: 0.96 | T155: 1.8 | U155: 4.35
A156: Пром. | B156: Хлеб ржаной | C156: 20 | D156: 1.3 | E156: 0.2 | F156: 6.7 | G156: 34.2 | H156: 0.04 | I156: 0.02 | J156: 0 | K156: 0 | L156: 0 | M156: 122 | N156: 49 | O156: 7 | P156: 9.4 | Q156: 31.6 | R156: 0.78 | S156: 0 | T156: 6.18 | U156: 0
B157: Итого за Завтрак | C157: 567 | D157: =SUM(D151:D156) -> 27 | E157: =SUM(E151:E156) -> 13.97 | F157: 91.19 | G157: 598.6 | H157: 0.19 | I157: 0.14 | J157: 161.86 | K157: 0.12 | L157: 5.52 | M157: 824.63 | N157: 572.16 | O157: 185.85 | P157: 112.96 | Q157: 289.02 | R157: 4.61 | S157: 78.18 | T157: 30.58 | U157: 143.74
B158: Итого за день | C158: 867 | D158: =D157+D149 -> 33.2 | E158: =E157+E149 -> 20.87 | F158: 120.19 | G158: 802.4 | H158: 0.29 | I158: 0.28 | J158: 192.83 | K158: 0.22 | L158: 5.96 | M158: 1081.67 | N158: 757.51 | O158: 349 | P158: 145.23 | Q158: 449.14 | R158: 6.79 | S158: 115.34 | T158: 55.38 | U158: 159.85
A160: 9 день, 2 неделя
A161: № рецептуры | B161: Прием пищи, наименование блюда | C161: Масса | D161: Пищевые вещества | G161: Энергетическая ценность | H161: Витамины | M161: Минеральные вещества
D162: Белки | E162: Жиры | F162: Углеводы | H162: B1 | I162: B2 | J162: A | K162: D | L162: C | M162: Na | N162: K | O162: Ca | P162: Mg | Q162: P | R162: Fe | S162: I | T162: Se | U162: F
C163: г | D163: г | E163: г | F163: г | G163: ккал | H163: мг | I163: мг | J163: мкг рет.экв | K163: мкг | L163: мг | M163: мг | N163: мг | O163: мг | P163: мг | Q163: мг | R163: мг | S163: мкг | T163: мкг | U163: мкг
B164: Среда, 2 неделя
B165: Буфет | C165: 7-11
A166: 54-2гн-2020 | B166: Чай с сахаром | C166: 150 | D166: 0.1 | E166: 0 | F166: 4.8 | G166: 20.1 | H166: 0 | I166: 0.01 | J166: 0.23 | K166: 0 | L166: 0.03 | M166: 0.51 | N166: 15.57 | O166: 49.56 | P166: 2.87 | Q166: 5.38 | R166: 0.55 | S166: 0 | T166: 0 | U166: 0
A167: Пром. | B167: Сушка простая | C167: 20 | D167: 2.2 | E167: 0.3 | F167: 13.8 | G167: 66.1 | H167: 0.05 | I167: 0.01 | J167: 0 | K167: 0 | L167: 0 | M167: 121 | N167: 37 | O167: 6 | P167: 9.2 | Q167: 24.2 | R167: 0.58 | S167: 0 | T167: 0 | U167: 0
B168: Итого за буфет | C168: 170 | D168: 2.3 | E168: 0.3 | F168: 18.6 | G168: 86.2 | H168: 0.05 | I168: 0.02 | J168: 0.23 | K168: 0 | L168: 0.03 | M168: 121.51 | N168: 52.57 | O168: 55.56 | P168: 12.07 | Q168: 29.58 | R168: 1.13 | S168: 0 | T168: 0 | U168: 0
B169: Горячий завтрак | C169: 7-11
A170: 54-16з-2020 | B170: Винегрет с растительным маслом | C170: 60 | D170: 0.7 | E170: 5.4 | F170: 4 | G170: 67.1 | H170: 0.02 | I170: 0.02 | J170: 72.89 | K170: 0 | L170: 2.26 | M170: 200.99 | N170: 127.85 | O170: 12.1 | P170: 9.66 | Q170: 21.4 | R170: 0.41 | S170: 7.86 | T170: 0.13 | U170: 11.85
A171: 54-11г-2020 | B171: Картофельное пюре | C171: 150 | D171: 3.1 | E171: 5.3 | F171: 19.8 | G171: 139.4 | H171: 0.12 | I171: 0.11 | J171: 23.8 | K171: 0.09 | L171: 10.2 | M171: 161.78 | N171: 624.83 | O171: 39.49 | P171: 28.23 | Q171: 84.47 | R171: 1.03 | S171: 28.46 | T171: 0.78 | U171: 42.79
A172: 54-7р-2020 | B172: Рыба припущенная в молоко | C172: 70/30 | D172: 13.09 | E172: 7.52 | F172: 2.89 | G172: 131.6 | H172: 0.08 | I172: 0.11 | J172: 9.02 | K172: 0.16 | L172: 1 | M172: 111 | N172: 347 | O172: 68 | P172: 44 | Q172: 202 | R172: 0.7 | S172: 133.48 | T172: 11.9 | U172: 572.6
A173: 54-21гн-2020 | B173: Какао с молоком | C173: 200 | D173: 4.7 | E173: 3.5 | F173: 12.5 | G173: 100.4 | H173: 0.04 | I173: 0.16 | J173: 17.25 | K173: 0 | L173: 0.68 | M173: 49.95 | N173: 220.33 | O173: 167.68 | P173: 34.32 | Q173: 130.28 | R173: 1.09 | S173: 11.7 | T173: 2.29 | U173: 38.25
A174: Пром. | B174: Яблоко | C174: 100 | D174: 0.6 | E174: 0.6 | F174: 14.7 | G174: 66.6 | H174: 0.04 | I174: 0.03 | J174: 7.5 | K174: 0 | L174: 15 | M174: 39 | N174: 417 | O174: 24 | P174: 14 | Q174: 17 | R174: 3.3 | S174: 3 | T174: 0.4 | U174: 12
A175: Пром. | B175: Хлеб пшеничный | C175: 30 | D175: 2.3 | E175: 0.2 | F175: 14.8 | G175: 70.3 | H175: 0.03 | I175: 0.01 | J175: 0 | K175: 0 | L175: 0 | M175: 149.7 | N175: 27.9 | O175: 6 | P175: 4.2 | Q175: 19.5 | R175: 0.33 | S175: 0.96 | T175: 1.8 | U175: 4.35
A176: Пром. | B176: Хлеб ржаной | C176: 20 | D176: 1.3 | E176: 0.2 | F176: 6.7 | G176: 34.2 | H176: 0.04 | I176: 0.02 | J176: 0 | K176: 0 | L176: 0 | M176: 122 | N176: 49 | O176: 7 | P176: 9.4 | Q176: 31.6 | R176: 0.78 | S176: 0 | T176: 6.18 | U176: 0
B177: Итого за Завтрак | C177: 660 | D177: =SUM(D170:D176) -> 25.79 | E177: =SUM(E170:E176) -> 22.72 | F177: 75.39 | G177: 609.6 | H177: 0.37 | I177: 0.46 | J177: 130.46 | K177: 0.25 | L177: 29.14 | M177: 834.42 | N177: 1813.91 | O177: 324.27 | P177: 143.81 | Q177: 506.25 | R177: 7.64 | S177: 185.46 | T177: 23.48 | U177: 681.84
B178: Итого за день | C178: =C177+C168 -> 830 | D178: =D177+D168 -> 28.09 | E178: =E177+E168 -> 23.02 | F178: 93.99 | G178: 695.8 | H178: 0.42 | I178: 0.48 | J178: 130.69 | K178: 0.25 | L178: 29.17 | M178: 955.93 | N178: 1866.48 | O178: 379.83 | P178: 155.88 | Q178: 535.83 | R178: 8.77 | S178: 185.46 | T178: 23.48 | U178: 681.84
A180: 10 день, 2 неделя
A181: № рецептуры | B181: Прием пищи, наименование блюда | C181: Масса | D181: Пищевые вещества | G181: Энергетическая ценность | H181: Витамины | M181: Минеральные вещества
D182: Белки | E182: Жиры | F182: Углеводы | H182: B1 | I182: B2 | J182: A | K182: D | L182: C | M182: Na | N182: K | O182: Ca | P182: Mg | Q182: P | R182: Fe | S182: I | T182: Se | U182: F
C183: г | D183: г | E183: г | F183: г | G183: ккал | H183: мг | I183: мг | J183: мкг рет.экв | K183: мкг | L183: мг | M183: мг | N183: мг | O183: мг | P183: мг | Q183: мг | R183: мг | S183: мкг | T183: мкг | U183: мкг
B184: Четверг, 2 неделя
B185: Буфет | C185: 7-11
A186: 54-6к-2020 | B186: Каша вязкая молочная пшенная | C186: 150 | D186: 6.2 | E186: 7.6 | F186: 28.2 | G186: 206.2 | H186: 0.14 | I186: 0.11 | J186: 31.22 | K186: 0.1 | L186: 0.41 | M186: 254.01 | N186: 162.17 | O186: 107.34 | P186: 36.72 | Q186: 139.54 | R186: 0.99 | S186: 38.71 | T186: 2.33 | U186: 26.31
A187: 54-3гн-2020 | B187: Чай с лимоном и сахаром | C187: 155 | D187: 0.2 | E187: 0 | F187: 5 | G187: 20.9 | H187: 0 | I187: 0.01 | J187: 0.29 | K187: 0 | L187: 0.87 | M187: 0.95 | N187: 22.67 | O187: 50.25 | P187: 3.42 | Q187: 6.39 | R187: 0.58 | S187: 0.01 | T187: 0.02 | U187: 0.53
B188: Итого за буфет | C188: 305 | D188: 6.4 | E188: 7.6 | F188: 33.2 | G188: 227.1 | H188: 0.14 | I188: 0.12 | J188: 31.51 | K188: 0.1 | L188: 1.28 | M188: 254.96 | N188: 184.84 | O188: 157.59 | P188: 40.14 | Q188: 145.93 | R188: 1.57 | S188: 38.72 | T188: 2.35 | U188: 26.84
B189: Горячий завтрак | C189: 7-11
A190: ном.рец №41 | B190: Салат из отварной моркови с яблоками с растительным маслом | C190: 60 | D190: 0.6 | E190: 5.9 | F190: 4.6 | G190: 74.7 | H190: 0 | I190: 0 | J190: 0.7 | K190: 0 | L190: 1.4 | M190: 0 | N190: 0 | O190: 19.1 | P190: 13.6 | Q190: 19.6 | R190: 0.8 | S190: 0 | T190: 0 | U190: 0
A191: 54-6г-2020 | B191: Рис отварной | C191: 150 | D191: 3.6 | E191: 4.8 | F191: 36.4 | G191: 203.5 | H191: 0.03 | I191: 0.02 | J191: 18.36 | K191: 0.09 | L191: 0 | M191: 152.8 | N191: 46.55 | O191: 106.65 | P191: 23.59 | Q191: 72.57 | R191: 0.49 | S191: 20.76 | T191: 7.24 | U191: 27.19
A192: 54-2м-2020 | B192: Гуляш из говядины | C192: 60/40 | D192: 13.76 | E192: 13.91 | F192: 3.9 | G192: 195.8 | H192: 0.04 | I192: 0.12 | J192: 25.46 | K192: 0.07 | L192: 1 | M192: 122 | N192: 322 | O192: 55 | P192: 23 | Q192: 166 | R192: 2.5 | S192: 17.06 | T192: 0.4 | U192: 62.71
A193: 54-21гн-2020 | B193: Кофейный напиток с молоком | C193: 200 | D193: 3.9 | E193: 2.9 | F193: 11.2 | G193: 86 | H193: 0.03 | I193: 0.13 | J193: 13.29 | K193: 0 | L193: 0.52 | M193: 38.55 | N193: 183.98 | O193: 148.32 | P193: 30.67 | Q193: 106.79 | R193: 1.06 | S193: 9 | T193: 1.76 | U193: 20
A194: Пром. | B194: Хлеб пшеничный | C194: 30 | D194: 2.3 | E194: 0.2 | F194: 14.8 | G194: 70.3 | H194: 0.03 | I194: 0.01 | J194: 0 | K194: 0 | L194: 0 | M194: 149.7 | N194: 27.9 | O194: 6 | P194: 4.2 | Q194: 19.5 | R194: 0.33 | S194: 0.96 | T194: 1.8 | U194: 4.35
A195: Пром. | B195: Хлеб ржаной | C195: 20 | D195: 1.3 | E195: 0.2 | F195: 6.7 | G195: 34.2 | H195: 0.04 | I195: 0.02 | J195: 0 | K195: 0 | L195: 0 | M195: 122 | N195: 49 | O195: 7 | P195: 9.4 | Q195: 31.6 | R195: 0.78 | S195: 0 | T195: 6.18 | U195: 0
B196: Итого за Завтрак | C196: 560 | D196: =SUM(D190:D195) -> 25.46 | E196: 27.91 | F196: 77.6 | G196: 664.5 | H196: 0.17 | I196: 0.3 | J196: 57.81 | K196: 0.16 | L196: 2.92 | M196: 585.05 | N196: 629.43 | O196: 342.07 | P196: 104.46 | Q196: 416.06 | R196: 5.96 | S196: 47.78 | T196: 17.38 | U196: 114.25
B197: Итого за день | C197: =C196+C188 -> 865 | D197: =D196+D188 -> 31.86 | E197: 35.51 | F197: 110.8 | G197: 891.6 | H197: 0.31 | I197: 0.42 | J197: 89.32 | K197: 0.26 | L197: 4.2 | M197: 840.01 | N197: 814.27 | O197: 499.66 | P197: 144.6 | Q197: 561.99 | R197: 7.53 | S197: 86.5 | T197: 19.73 | U197: 141.09
A199: 11 день, 2 неделя
A200: № рецептуры | B200: Прием пищи, наименование блюда | C200: Масса | D200: Пищевые вещества | G200: Энергетическая ценность | H200: Витамины | M200: Минеральные вещества
D201: Белки | E201: Жиры | F201: Углеводы | H201: B1 | I201: B2 | J201: A | K201: D | L201: C | M201: Na | N201: K | O201: Ca | P201: Mg | Q201: P | R201: Fe | S201: I | T201: Se | U201: F
C202: г | D202: г | E202: г | F202: г | G202: ккал | H202: мг | I202: мг | J202: мкг рет.экв | K202: мкг | L202: мг | M202: мг | N202: мг | O202: мг | P202: мг | Q202: мг | R202: мг | S202: мкг | T202: мкг | U202: мкг
B203: Пятница, 2 неделя
B204: Буфет | C204: 7-11
A205: 54-9к-2020 | B205: Каша вязкая молочная овсяная | C205: 150 | D205: 6.4 | E205: 8.4 | F205: 25.7 | G205: 204.6 | H205: 0.15 | I205: 0.13 | J205: 30.15 | K205: 0.1 | L205: 0.39 | M205: 259.99 | N205: 205.54 | O205: 118.23 | P205: 47.12 | Q205: 175.03 | R205: 1.38 | S205: 38.44 | T205: 10.92 | U205: 46.71
A206: 54-2гн-2020 | B206: Чай с сахаром | C206: 150 | D206: 0.1 | E206: 0 | F206: 4.8 | G206: 20.1 | H206: 0 | I206: 0.01 | J206: 0.23 | K206: 0 | L206: 0.03 | M206: 0.51 | N206: 15.57 | O206: 49.56 | P206: 2.87 | Q206: 5.38 | R206: 0.55 | S206: 0 | T206: 0 | U206: 0
B207: Итого за буфет | C207: 300 | D207: 6.5 | E207: 8.4 | F207: 30.5 | G207: 224.7 | H207: 0.15 | I207: 0.14 | J207: 30.38 | K207: 0.1 | L207: 0.42 | M207: 260.5 | N207: 221.11 | O207: 167.79 | P207: 49.99 | Q207: 180.41 | R207: 1.93 | S207: 38.44 | T207: 10.92 | U207: 46.71
B208: Горячий завтрак | C208: 7-11
A209: 54-13з-2020 | B209: Салат из свеклы отварной с растительным маслом | C209: 60 | D209: 0.8 | E209: 2.7 | F209: 4.6 | G209: 45.6 | H209: 0.01 | I209: 0.02 | J209: 0.68 | K209: 0 | L209: 2.28 | M209: 78.77 | N209: 136.27 | O209: 19.21 | P209: 10.95 | Q209: 21.51 | R209: 0.7 | S209: 11.99 | T209: 0.35 | U209: 11.4
A210: 54-1г-2020 | B210: Макароны отварные | C210: 150 | D210: 5.3 | E210: 4.9 | F210: 32.8 | G210: 196.8 | H210: 0.06 | I210: 0.02 | J210: 18.36 | K210: 0.09 | L210: 0 | M210: 149.04 | N210: 53.8 | O210: 105.83 | P210: 7.19 | Q210: 40.7 | R210: 0.73 | S210: 20.77 | T210: 0.06 | U210: 11.92
A211: ном.рец №174 | B211: Тефтели мясные из говядины, полуфабрикат в соусе | C211: 75/30 | D211: 10.81 | E211: 10.4 | F211: 8.42 | G211: 168.9 | H211: 0 | I211: 0 | J211: 38.45 | K211: 0.01 | L211: 1.79 | M211: 3 | N211: 43 | O211: 45.75 | P211: 35.13 | Q211: 109 | R211: 1.6 | S211: 0 | T211: 0 | U211: 0
A212: 54-4гн-2020 | B212: Компот из кураги | C212: 200 | D212: 0.98 | E212: 0.05 | F212: 15.64 | G212: 66.9 | H212: 0.01 | I212: 0.03 | J212: 69.96 | K212: 0 | L212: 0 | M212: 3 | N212: 285 | O212: 90 | P212: 18 | Q212: 25 | R212: 0.6 | S212: 0 | T212: 0 | U212: 0
A213: Пром. | B213: Хлеб ржаной | C213: 20 | D213: 1.3 | E213: 0.2 | F213: 6.7 | G213: 34.2 | H213: 0.04 | I213: 0.02 | J213: 0 | K213: 0 | L213: 0 | M213: 122 | N213: 49 | O213: 7 | P213: 9.4 | Q213: 31.6 | R213: 0.78 | S213: 0 | T213: 6.18 | U213: 0
... 32 more rows

Sheet овз 11-18 лет город
A1: Согласовано | O1: Утверждено
O2: ООО "КРЕПЫШ"
O3: _______________________Ефремов В.Ю.
A6: Меню для организации питания детей с ОВЗ в возрасте от 11 до 18 лет в образовательных учреждениях Мензелинского района РТ на 2 полугодие 2021-2022 учебный год.
A8: 1 день, 1 неделя
A9: № рецептуры | B9: Прием пищи, наименование блюда | C9: Масса | D9: Пищевые вещества | G9: Энергетическая ценность | H9: Витамины | M9: Минеральные вещества
D10: Белки | E10: Жиры | F10: Углеводы | H10: B1 | I10: B2 | J10: A | K10: D | L10: C | M10: Na | N10: K | O10: Ca | P10: Mg | Q10: P | R10: Fe | S10: I | T10: Se | U10: F
C11: г | D11: г | E11: г | F11: г | G11: ккал | H11: мг | I11: мг | J11: мкг рет.экв | K11: мкг | L11: мг | M11: мг | N11: мг | O11: мг | P11: мг | Q11: мг | R11: мг | S11: мкг | T11: мкг | U11: мкг
B12: Понедельник, 1 неделя
B13: Буфет | C13: 11-18
A14: 54-3гн-2020 | B14: Чай с лимоном и сахаром | C14: 155 | D14: 0.2 | E14: 0 | F14: 5 | G14: 20.9 | H14: 0 | I14: 0.01 | J14: 0.29 | K14: 0 | L14: 0.87 | M14: 0.95 | N14: 22.67 | O14: 50.25 | P14: 3.42 | Q14: 6.39 | R14: 0.58 | S14: 0.01 | T14: 0.02 | U14: 0.53
A15: Пром. | B15: Сушка простая | C15: 20 | D15: 2.2 | E15: 0.3 | F15: 13.8 | G15: 66.1 | H15: 0.05 | I15: 0.01 | J15: 0 | K15: 0 | L15: 0 | M15: 121 | N15: 37 | O15: 6 | P15: 9.2 | Q15: 24.2 | R15: 0.58 | S15: 0 | T15: 0 | U15: 0
B16: Итого за буфет | C16: 175 | D16: 2.4 | E16: 0.3 | F16: 18.8 | G16: 87 | H16: 0.05 | I16: 0.02 | J16: 0.29 | K16: 0 | L16: 0.87 | M16: 121.95 | N16: 59.67 | O16: 56.25 | P16: 12.62 | Q16: 30.59 | R16: 1.16 | S16: 0.01 | T16: 0.02 | U16: 0.53
B17: Горячий завтрак | C17: 11-18
A18: ном.рец №41 | B18: Салат из отварной моркови с яблоками с растительным маслом | C18: 60 | D18: 0.6 | E18: 5.9 | F18: 4.6 | G18: 74.7 | H18: 0 | I18: 0 | J18: 0.7 | K18: 0 | L18: 1.4 | M18: 0 | N18: 0 | O18: 19.1 | P18: 13.6 | Q18: 19.6 | R18: 0.8 | S18: 0 | T18: 0 | U18: 0
A19: 54-4г-2020 | B19: Каша гречневая рассыпчатая | C19: 180 | D19: 9.87 | E19: 7.61 | F19: 43.12 | G19: 280.5 | H19: 0.26 | I19: 0.14 | J19: 23.02 | K19: 0.11 | L19: 0 | M19: 180 | N19: 263 | O19: 57 | P19: 144 | Q19: 217 | R19: 4.8 | S19: 26.73 | T19: 4.3 | U19: 19.27
A20: ном.рец №174 | B20: Тефтели мясные из говядины, полуфабрикат в соусе | C20: 75/30 | D20: 10.81 | E20: 10.4 | F20: 8.42 | G20: 168.9 | H20: 0 | I20: 0 | J20: 38.45 | K20: 0.01 | L20: 1.79 | M20: 3 | N20: 43 | O20: 45.75 | P20: 35.13 | Q20: 109 | R20: 1.6 | S20: 0 | T20: 0 | U20: 0
A21: 54-4гн-2020 | B21: Чай с молоком и сахаром | C21: 200 | D21: 1.6 | E21: 1.1 | F21: 8.6 | G21: 50.9 | H21: 0.01 | I21: 0.07 | J21: 6.9 | K21: 0 | L21: 0.3 | M21: 19.68 | N21: 81.35 | O21: 103.48 | P21: 9.92 | Q21: 46.33 | R21: 0.78 | S21: 4.5 | T21: 0.88 | U21: 10
A22: Пром. | B22: Хлеб пшеничный | C22: 30 | D22: 2.3 | E22: 0.2 | F22: 14.8 | G22: 70.3 | H22: 0.03 | I22: 0.01 | J22: 0 | K22: 0 | L22: 0 | M22: 149.7 | N22: 27.9 | O22: 6 | P22: 4.2 | Q22: 19.5 | R22: 0.33 | S22: 0.96 | T22: 1.8 | U22: 4.35
A23: Пром. | B23: Хлеб ржаной | C23: 20 | D23: 1.3 | E23: 0.2 | F23: 6.7 | G23: 34.2 | H23: 0.04 | I23: 0.02 | J23: 0 | K23: 0 | L23: 0 | M23: 122 | N23: 49 | O23: 7 | P23: 9.4 | Q23: 31.6 | R23: 0.78 | S23: 0 | T23: 6.18 | U23: 0
B24: Итого за Завтрак | C24: 595 | D24: =SUM(D18:D23) -> 26.48 | E24: 25.41 | F24: 86.24 | G24: 679.5 | H24: 0.34 | I24: 0.24 | J24: 69.07 | K24: 0.12 | L24: 3.49 | M24: 474.38 | N24: 464.25 | O24: 238.33 | P24: 216.25 | Q24: 443.03 | R24: 9.09 | S24: 32.19 | T24: 13.16 | U24: 33.62
B25: Итого за день | C25: =C24+C16 -> 770 | D25: 28.88 | E25: 25.71 | F25: 105.04 | G25: 766.5 | H25: 0.39 | I25: 0.26 | J25: 69.36 | K25: 0.12 | L25: 4.36 | M25: 596.33 | N25: 523.92 | O25: 294.58 | P25: 228.87 | Q25: 473.62 | R25: 10.25 | S25: 32.2 | T25: 13.18 | U25: 34.15
A27: 2 день, 1 неделя
A28: № рецептуры | B28: Прием пищи, наименование блюда | C28: Масса | D28: Пищевые вещества | G28: Энергетическая ценность | H28: Витамины | M28: Минеральные вещества
D29: Белки | E29: Жиры | F29: Углеводы | H29: B1 | I29: B2 | J29: A | K29: D | L29: C | M29: Na | N29: K | O29: Ca | P29: Mg | Q29: P | R29: Fe | S29: I | T29: Se | U29: F
C30: г | D30: г | E30: г | F30: г | G30: ккал | H30: мг | I30: мг | J30: мкг рет.экв | K30: мкг | L30: мг | M30: мг | N30: мг | O30: мг | P30: мг | Q30: мг | R30: мг | S30: мкг | T30: мкг | U30: мкг
B31: Вторник, 1 неделя
B32: Буфет | C32: 11-18
A33: 54-13к-2020 | B33: Каша вязкая молочная пшеничная | C33: 150 | D33: 6.1 | E33: 6.9 | F33: 29 | G33: 202.7 | H33: 0.1 | I33: 0.13 | J33: 30.74 | K33: 0.1 | L33: 0.41 | M33: 256.57 | N33: 169.91 | O33: 113.68 | P33: 29.4 | Q33: 154.74 | R33: 1.64 | S33: 37.16 | T33: 24.8 | U33: 16.11
A34: 54-1гн-2020 | B34: Чай без сахара | C34: 150 | D34: 0.1 | E34: 0 | F34: 0 | G34: 1.1 | H34: 0 | I34: 0.01 | J34: 0.23 | K34: 0 | L34: 0.03 | M34: 0.47 | N34: 15.44 | O34: 49.47 | P34: 2.87 | Q34: 5.38 | R34: 0.54 | S34: 0 | T34: 0 | U34: 0
B35: Итого за буфет | C35: 300 | D35: 6.2 | E35: 6.9 | F35: 29 | G35: 203.8 | H35: 0.1 | I35: 0.14 | J35: 30.97 | K35: 0.1 | L35: 0.44 | M35: 257.04 | N35: 185.35 | O35: 163.15 | P35: 32.27 | Q35: 160.12 | R35: 2.18 | S35: 37.16 | T35: 24.8 | U35: 16.11
B36: Горячий завтрак | C36: 11-18
A37: 54-16з-2020 | B37: Винегрет с растительным маслом | C37: 60 | D37: 0.7 | E37: 5.4 | F37: 4 | G37: 67.1 | H37: 0.02 | I37: 0.02 | J37: 72.89 | K37: 0 | L37: 2.26 | M37: 200.99 | N37: 127.85 | O37: 12.1 | P37: 9.66 | Q37: 21.4 | R37: 0.41 | S37: 7.86 | T37: 0.13 | U37: 11.85
A38: 54-22м-2020 | B38: Рагу из курицы | C38: 160/60 | D38: 23.05 | E38: 7.74 | F38: 19.27 | G38: 239 | H38: 0.15 | I38: 0.12 | J38: 285.64 | K38: 0 | L38: 13 | M38: 310 | N38: 812 | O38: 34 | P38: 102 | Q38: 213 | R38: 2.3 | S38: 47.26 | T38: 18.7 | U38: 172
A39: 54-21гн-2020 | B39: Какао с молоком | C39: 200 | D39: 4.7 | E39: 3.5 | F39: 12.5 | G39: 100.4 | H39: 0.04 | I39: 0.16 | J39: 17.25 | K39: 0 | L39: 0.68 | M39: 49.95 | N39: 220.33 | O39: 167.68 | P39: 34.32 | Q39: 130.28 | R39: 1.09 | S39: 11.7 | T39: 2.29 | U39: 38.25
A40: 54-10в-2020 | B40: Булочка ванильная | C40: 50 | D40: 3.9 | E40: 3.37 | F40: 25.37 | G40: 147.4 | H40: 0.04 | I40: 0.02 | J40: 15.93 | K40: 0.12 | L40: 0 | M40: 200 | N40: 41 | O40: 14 | P40: 5 | Q40: 33 | R40: 0.5 | S40: 27.814 | T40: 2.6 | U40: 9.19
A41: Пром. | B41: Хлеб пшеничный | C41: 30 | D41: 2.3 | E41: 0.2 | F41: 14.8 | G41: 70.3 | H41: 0.03 | I41: 0.01 | J41: 0 | K41: 0 | L41: 0 | M41: 149.7 | N41: 27.9 | O41: 6 | P41: 4.2 | Q41: 19.5 | R41: 0.33 | S41: 0.96 | T41: 1.8 | U41: 4.35
A42: Пром. | B42: Хлеб ржаной | C42: 20 | D42: 1.3 | E42: 0.2 | F42: 6.7 | G42: 34.2 | H42: 0.04 | I42: 0.02 | J42: 0 | K42: 0 | L42: 0 | M42: 122 | N42: 49 | O42: 7 | P42: 9.4 | Q42: 31.6 | R42: 0.78 | S42: 0 | T42: 6.18 | U42: 0
B43: Итого за Завтрак | C43: 580 | D43: =SUM(D37:D42) -> 35.95 | E43: =SUM(E37:E42) -> 20.41 | F43: 82.64 | G43: 658.4 | H43: 0.32 | I43: 0.35 | J43: 391.71 | K43: 0.12 | L43: 15.94 | M43: 1032.64 | N43: 1278.08 | O43: 240.78 | P43: 164.58 | Q43: 448.78 | R43: 5.41 | S43: 95.594 | T43: 31.7 | U43: 235.64
B44: Итого за день | C44: 880 | D44: =D43+D35 -> 42.15 | E44: =E43+E35 -> 27.31 | F44: 111.64 | G44: 862.2 | H44: 0.42 | I44: 0.49 | J44: 422.68 | K44: 0.22 | L44: 16.38 | M44: 1289.68 | N44: 1463.43 | O44: 403.93 | P44: 196.85 | Q44: 608.9 | R44: 7.59 | S44: 132.754 | T44: 56.5 | U44: 251.75
A46: 3 день, 1 неделя
A47: № рецептуры | B47: Прием пищи, наименование блюда | C47: Масса | D47: Пищевые вещества | G47: Энергетическая ценность | H47: Витамины | M47: Минеральные вещества
D48: Белки | E48: Жиры | F48: Углеводы | H48: B1 | I48: B2 | J48: A | K48: D | L48: C | M48: Na | N48: K | O48: Ca | P48: Mg | Q48: P | R48: Fe | S48: I | T48: Se | U48: F
C49: г | D49: г | E49: г | F49: г | G49: ккал | H49: мг | I49: мг | J49: мкг рет.экв | K49: мкг | L49: мг | M49: мг | N49: мг | O49: мг | P49: мг | Q49: мг | R49: мг | S49: мкг | T49: мкг | U49: мкг
B50: Среда, 1 неделя
B51: Буфет | C51: 11-18
A52: 54-4гн-2020 | B52: Чай с молоком и сахаром | C52: 150 | D52: 1.2 | E52: 0.9 | F52: 6.5 | G52: 38.2 | H52: 0.01 | I52: 0.05 | J52: 5.18 | K52: 0 | L52: 0.23 | M52: 14.76 | N52: 61.01 | O52: 77.61 | P52: 7.44 | Q52: 34.75 | R52: 0.58 | S52: 3.38 | T52: 0.66 | U52: 7.5
A53: Пром. | B53: Сушка простая | C53: 20 | D53: 2.2 | E53: 0.3 | F53: 13.8 | G53: 66.1 | H53: 0.05 | I53: 0.01 | J53: 0 | K53: 0 | L53: 0 | M53: 121 | N53: 37 | O53: 6 | P53: 9.2 | Q53: 24.2 | R53: 0.58 | S53: 0 | T53: 0 | U53: 0
B54: Итого за буфет | C54: 170 | D54: 3.4 | E54: 1.2 | F54: 20.3 | G54: 104.3 | H54: 0.06 | I54: 0.06 | J54: 5.18 | K54: 0 | L54: 0.23 | M54: 135.76 | N54: 98.01 | O54: 83.61 | P54: 16.64 | Q54: 58.95 | R54: 1.16 | S54: 3.38 | T54: 0.66 | U54: 7.5
B55: Горячий завтрак | C55: 11-18
A56: ном.рец №40 | B56: Салат картофельный с морковью, зеленым горошком и растительным маслом | C56: 60 | D56: 1.6 | E56: 4.3 | F56: 5.9 | G56: 68.7 | H56: 0 | I56: 0 | J56: 0.4 | K56: 0 | L56: 3.9 | M56: 0 | N56: 0 | O56: 14.8 | P56: 13.9 | Q56: 37 | R56: 0.7 | S56: 0 | T56: 0 | U56: 0
A57: 54-1г-2020 | B57: Макароны отварные | C57: 180 | D57: 6.39 | E57: 5.91 | F57: 39.36 | G57: 236.2 | H57: 0.07 | I57: 0.03 | J57: 22.03 | K57: 0.11 | L57: 0 | M57: 179 | N57: 64 | O57: 127 | P57: 9 | Q57: 48 | R57: 0.9 | S57: 24.92 | T57: 0.1 | U57: 14.31
A58: №243 | B58: Сосиски говяжьи отварные, п/ф (2 шт) | C58: 100 | D58: 13.2 | E58: 22.84 | F58: 1.8 | G58: 247.15 | H58: 0 | I58: 0 | J58: 0.08 | K58: 0.01 | L58: 0 | M58: 0 | N58: 0 | O58: 7.44 | P58: 15.51 | Q58: 137.39 | R58: 1.74 | S58: 0 | T58: 0 | U58: 0
A59: Пром. | B59: Апельсин | C59: 100 | D59: 1.71 | E59: 0.38 | F59: 15.39 | G59: 71.8 | H59: 0.08 | I59: 0.06 | J59: 15.2 | K59: 0 | L59: 114 | M59: 25 | N59: 374 | O59: 65 | P59: 25 | Q59: 44 | R59: 0.6 | S59: 3.8 | T59: 0.9 | U59: 32.3
A60: 54-3гн-2020 | B60: Чай с лимоном и сахаром | C60: 207 | D60: 0.2 | E60: 0.1 | F60: 6.6 | G60: 27.9 | H60: 0 | I60: 0.01 | J60: 0.38 | K60: 0 | L60: 1.16 | M60: 1.26 | N60: 30.23 | O60: 67 | P60: 4.56 | Q60: 8.52 | R60: 0.77 | S60: 0.01 | T60: 0.02 | U60: 0.7
A61: Пром. | B61: Хлеб ржаной | C61: 20 | D61: 1.3 | E61: 0.2 | F61: 6.7 | G61: 34.2 | H61: 0.04 | I61: 0.02 | J61: 0 | K61: 0 | L61: 0 | M61: 122 | N61: 49 | O61: 7 | P61: 9.4 | Q61: 31.6 | R61: 0.78 | S61: 0 | T61: 6.18 | U61: 0
A62: Пром. | B62: Хлеб пшеничный | C62: 30 | D62: 2.3 | E62: 0.2 | F62: 14.8 | G62: 70.3 | H62: 0.03 | I62: 0.01 | J62: 0 | K62: 0 | L62: 0 | M62: 149.7 | N62: 27.9 | O62: 6 | P62: 4.2 | Q62: 19.5 | R62: 0.33 | S62: 0.96 | T62: 1.8 | U62: 4.35
B63: Итого за Завтрак | C63: =SUM(C56:C62) -> 697 | D63: =SUM(D56:D62) -> 26.7 | E63: =SUM(E56:E62) -> 33.93 | F63: 90.55 | G63: 756.25 | H63: 0.22 | I63: 0.13 | J63: 38.09 | K63: 0.12 | L63: 119.06 | M63: 476.96 | N63: 545.13 | O63: 294.24 | P63: 81.57 | Q63: 326.01 | R63: 5.82 | S63: 29.69 | T63: 9 | U63: 51.66
B64: Итого за день | C64: =C63+C54 -> 867 | D64: =D63+D54 -> 30.1 | E64: =E63+E54 -> 35.13 | F64: 110.85 | G64: 860.55 | H64: 0.28 | I64: 0.19 | J64: 43.27 | K64: 0.12 | L64: 119.29 | M64: 612.72 | N64: 643.14 | O64: 377.85 | P64: 98.21 | Q64: 384.96 | R64: 6.98 | S64: 33.07 | T64: 9.66 | U64: 59.16
A66: 4 день, 1 неделя
A67: № рецептуры | B67: Прием пищи, наименование блюда | C67: Масса | D67: Пищевые вещества | G67: Энергетическая ценность | H67: Витамины | M67: Минеральные вещества
D68: Белки | E68: Жиры | F68: Углеводы | H68: B1 | I68: B2 | J68: A | K68: D | L68: C | M68: Na | N68: K | O68: Ca | P68: Mg | Q68: P | R68: Fe | S68: I | T68: Se | U68: F
C69: г | D69: г | E69: г | F69: г | G69: ккал | H69: мг | I69: мг | J69: мкг рет.экв | K69: мкг | L69: мг | M69: мг | N69: мг | O69: мг | P69: мг | Q69: мг | R69: мг | S69: мкг | T69: мкг | U69: мкг
B70: Четверг, 1 неделя
B71: Буфет | C71: 11-18
A72: 54-6к-2020 | B72: Каша вязкая молочная пшенная | C72: 150 | D72: 6.2 | E72: 7.6 | F72: 28.2 | G72: 206.2 | H72: 0.14 | I72: 0.11 | J72: 31.22 | K72: 0.1 | L72: 0.41 | M72: 254.01 | N72: 162.17 | O72: 107.34 | P72: 36.72 | Q72: 139.54 | R72: 0.99 | S72: 38.71 | T72: 2.33 | U72: 26.31
A73: 54-1гн-2020 | B73: Чай без сахара | C73: 150 | D73: 0.1 | E73: 0 | F73: 0 | G73: 1.1 | H73: 0 | I73: 0.01 | J73: 0.23 | K73: 0 | L73: 0.03 | M73: 0.47 | N73: 15.44 | O73: 49.47 | P73: 2.87 | Q73: 5.38 | R73: 0.54 | S73: 0 | T73: 0 | U73: 0
B74: Итого за буфет | C74: 300 | D74: 6.3 | E74: 7.6 | F74: 28.2 | G74: 207.3 | H74: 0.14 | I74: 0.12 | J74: 31.45 | K74: 0.1 | L74: 0.44 | M74: 254.48 | N74: 177.61 | O74: 156.81 | P74: 39.59 | Q74: 144.92 | R74: 1.53 | S74: 38.71 | T74: 2.33 | U74: 26.31
B75: Горячий завтрак | C75: 11-18
A76: 54-13з-2020 | B76: Салат из свеклы отварной с растительным маслом | C76: 60 | D76: 0.8 | E76: 2.7 | F76: 4.6 | G76: 45.6 | H76: 0.01 | I76: 0.02 | J76: 0.68 | K76: 0 | L76: 2.28 | M76: 78.77 | N76: 136.27 | O76: 19.21 | P76: 10.95 | Q76: 21.51 | R76: 0.7 | S76: 11.99 | T76: 0.35 | U76: 11.4
A77: 54-11г-2020 | B77: Картофельное пюре | C77: 200 | D77: 4.1 | E77: 7.07 | F77: 26.43 | G77: 185.8 | H77: 0.16 | I77: 0.14 | J77: 31.72 | K77: 0.12 | L77: 13 | M77: 215 | N77: 833 | O77: 53 | P77: 38 | Q77: 112 | R77: 1.3 | S77: 37.95 | T77: 1.1 | U77: 57.05
A78: ном.рец №608 | B78: Котлета мясная Любительская, полуфабрикат в соусе | C78: 65/35 | D78: 10.04 | E78: 12.79 | F78: 8.12 | G78: 187.9 | H78: 0 | I78: 0 | J78: 38.45 | K78: 0.01 | L78: 1.15 | M78: 3 | N78: 43 | O78: 45.75 | P78: 35.13 | Q78: 173.38 | R78: 1.6 | S78: 0 | T78: 0 | U78: 0
A79: 54-2гн-2020 | B79: Кофейный напиток с молоком | C79: 200 | D79: 3.9 | E79: 2.9 | F79: 11.2 | G79: 86 | H79: 0.03 | I79: 0.13 | J79: 13.29 | K79: 0 | L79: 0.52 | M79: 38.55 | N79: 183.98 | O79: 148.32 | P79: 30.67 | Q79: 106.79 | R79: 1.06 | S79: 9 | T79: 1.76 | U79: 20
A80: Пром. | B80: Хлеб ржаной | C80: 20 | D80: 1.3 | E80: 0.2 | F80: 6.7 | G80: 34.2 | H80: 0.04 | I80: 0.02 | J80: 0 | K80: 0 | L80: 0 | M80: 122 | N80: 49 | O80: 7 | P80: 9.4 | Q80: 31.6 | R80: 0.78 | S80: 0 | T80: 6.18 | U80: 0
A81: Пром. | B81: Хлеб пшеничный | C81: 30 | D81: 2.3 | E81: 0.2 | F81: 14.8 | G81: 70.3 | H81: 0.03 | I81: 0.01 | J81: 0 | K81: 0 | L81: 0 | M81: 149.7 | N81: 27.9 | O81: 6 | P81: 4.2 | Q81: 19.5 | R81: 0.33 | S81: 0.96 | T81: 1.8 | U81: 4.35
B82: Итого за Завтрак | C82: 610 | D82: =SUM(D76:D81) -> 22.44 | E82: 25.86 | F82: 71.85 | G82: 609.8 | H82: 0.27 | I82: 0.32 | J82: 84.14 | K82: 0.13 | L82: 16.95 | M82: 607.02 | N82: 1273.15 | O82: 279.28 | P82: 128.35 | Q82: 464.78 | R82: 5.77 | S82: 59.9 | T82: 11.19 | U82: 92.8
B83: Итого за день | C83: =C82+C74 -> 910 | D83: =D82+D74 -> 28.74 | E83: 33.46 | F83: 100.05 | G83: 817.1 | H83: 0.41 | I83: 0.44 | J83: 115.59 | K83: 0.23 | L83: 17.39 | M83: 861.5 | N83: 1450.76 | O83: 436.09 | P83: 167.94 | Q83: 609.7 | R83: 7.3 | S83: 98.61 | T83: 13.52 | U83: 119.11
A85: 5 день, 1 неделя
A86: № рецептуры | B86: Прием пищи, наименование блюда | C86: Масса | D86: Пищевые вещества | G86: Энергетическая ценность | H86: Витамины | M86: Минеральные вещества
D87: Белки | E87: Жиры | F87: Углеводы | H87: B1 | I87: B2 | J87: A | K87: D | L87: C | M87: Na | N87: K | O87: Ca | P87: Mg | Q87: P | R87: Fe | S87: I | T87: Se | U87: F
C88: г | D88: г | E88: г | F88: г | G88: ккал | H88: мг | I88: мг | J88: мкг рет.экв | K88: мкг | L88: мг | M88: мг | N88: мг | O88: мг | P88: мг | Q88: мг | R88: мг | S88: мкг | T88: мкг | U88: мкг
B89: Пятница, 1 неделя
B90: Буфет | C90: 11-18
A91: 54-1г-2020 | B91: Макароны отварные | C91: 150 | D91: 5.3 | E91: 4.9 | F91: 32.8 | G91: 196.8 | H91: 0.06 | I91: 0.02 | J91: 18.36 | K91: 0.09 | L91: 0 | M91: 149.04 | N91: 53.8 | O91: 105.83 | P91: 7.19 | Q91: 40.7 | R91: 0.73 | S91: 20.77 | T91: 0.06 | U91: 11.92
A92: 54-2гн-2020 | B92: Чай с сахаром | C92: 150 | D92: 0.1 | E92: 0 | F92: 4.8 | G92: 20.1 | H92: 0 | I92: 0.01 | J92: 0.23 | K92: 0 | L92: 0.03 | M92: 0.51 | N92: 15.57 | O92: 49.56 | P92: 2.87 | Q92: 5.38 | R92: 0.55 | S92: 0 | T92: 0 | U92: 0
B93: Итого за буфет | C93: 300 | D93: 5.4 | E93: 4.9 | F93: 37.6 | G93: 216.9 | H93: 0.06 | I93: 0.03 | J93: 18.59 | K93: 0.09 | L93: 0.03 | M93: 149.55 | N93: 69.37 | O93: 155.39 | P93: 10.06 | Q93: 46.08 | R93: 1.28 | S93: 20.77 | T93: 0.06 | U93: 11.92
B94: Горячий завтрак | C94: 11-18
A95: 54-11з-2020 | B95: Салат из моркови с яблоками с растительным маслом | C95: 60 | D95: 0.5 | E95: 6.1 | F95: 4.3 | G95: 74.3 | H95: 0.03 | I95: 0.03 | J95: 732.9 | K95: 0 | L95: 3.63 | M95: 89.79 | N95: 123.26 | O95: 13.5 | P95: 15.57 | Q95: 22.38 | R95: 0.66 | S95: 10.19 | T95: 0.09 | U95: 21.57
A96: 54-6г-2020 | B96: Плов из говядины | C96: 180/40 | D96: 16.86 | E96: 16.22 | F96: 42.44 | G96: 383.1 | H96: 0.07 | I96: 0.13 | J96: 287.76 | K96: 0.11 | L96: 0 | M96: 304 | N96: 295 | O96: 128 | P96: 48 | Q96: 213 | R96: 2.4 | S96: 42.53 | T96: 8.1 | U96: 89.91
A97: 54-4гн-2020 | B97: Компот из кураги | C97: 200 | D97: 0.98 | E97: 0.05 | F97: 15.64 | G97: 66.9 | H97: 0.01 | I97: 0.03 | J97: 69.96 | K97: 0 | L97: 0 | M97: 3 | N97: 285 | O97: 90 | P97: 18 | Q97: 25 | R97: 0.6 | S97: 0 | T97: 0 | U97: 0
A98: Пром. | B98: Хлеб ржаной | C98: 20 | D98: 1.3 | E98: 0.2 | F98: 6.7 | G98: 34.2 | H98: 0.04 | I98: 0.02 | J98: 0 | K98: 0 | L98: 0 | M98: 122 | N98: 49 | O98: 7 | P98: 9.4 | Q98: 31.6 | R98: 0.78 | S98: 0 | T98: 6.18 | U98: 0
A99: Пром. | B99: Хлеб пшеничный | C99: 30 | D99: 2.3 | E99: 0.2 | F99: 14.8 | G99: 70.3 | H99: 0.03 | I99: 0.01 | J99: 0 | K99: 0 | L99: 0 | M99: 149.7 | N99: 27.9 | O99: 6 | P99: 4.2 | Q99: 19.5 | R99: 0.33 | S99: 0.96 | T99: 1.8 | U99: 4.35
B100: Итого за Завтрак | C100: 530 | D100: =SUM(D95:D99) -> 21.94 | E100: =SUM(E95:E99) -> 22.77 | F100: 83.88 | G100: 628.8 | H100: 0.18 | I100: 0.22 | J100: 1090.62 | K100: 0.11 | L100: 3.63 | M100: 668.49 | N100: 780.16 | O100: 244.5 | P100: 95.17 | Q100: 311.48 | R100: 4.77 | S100: 53.68 | T100: 16.17 | U100: 115.83
B101: Итого за день | C101: =C100+C93 -> 830 | D101: 27.34 | E101: 27.67 | F101: 121.48 | G101: 845.7 | H101: 0.24 | I101: 0.25 | J101: 1109.21 | K101: 0.2 | L101: 3.66 | M101: 818.04 | N101: 849.53 | O101: 399.89 | P101: 105.23 | Q101: 357.56 | R101: 6.05 | S101: 74.45 | T101: 16.23 | U101: 127.75
A103: 6 день, 1 неделя
A104: № рецептуры | B104: Прием пищи, наименование блюда | C104: Масса | D104: Пищевые вещества | G104: Энергетическая ценность | H104: Витамины | M104: Минеральные вещества
D105: Белки | E105: Жиры | F105: Углеводы | H105: B1 | I105: B2 | J105: A | K105: D | L105: C | M105: Na | N105: K | O105: Ca | P105: Mg | Q105: P | R105: Fe | S105: I | T105: Se | U105: F
C106: г | D106: г | E106: г | F106: г | G106: ккал | H106: мг | I106: мг | J106: мкг рет.экв | K106: мкг | L106: мг | M106: мг | N106: мг | O106: мг | P106: мг | Q106: мг | R106: мг | S106: мкг | T106: мкг | U106: мкг
B107: Суббота, 1 неделя
B108: Буфет | C108: 11-18
A109: 54-3гн-2020 | B109: Чай с лимоном и сахаром | C109: 155 | D109: 0.2 | E109: 0 | F109: 5 | G109: 20.9 | H109: 0 | I109: 0.01 | J109: 0.29 | K109: 0 | L109: 0.87 | M109: 0.95 | N109: 22.67 | O109: 50.25 | P109: 3.42 | Q109: 6.39 | R109: 0.58 | S109: 0.01 | T109: 0.02 | U109: 0.53
A110: Пром. | B110: Сушка простая | C110: 20 | D110: 2.2 | E110: 0.3 | F110: 13.8 | G110: 66.1 | H110: 0.05 | I110: 0.01 | J110: 0 | K110: 0 | L110: 0 | M110: 121 | N110: 37 | O110: 6 | P110: 9.2 | Q110: 24.2 | R110: 0.58 | S110: 0 | T110: 0 | U110: 0
B111: Итого за буфет | C111: 175 | D111: 2.4 | E111: 0.3 | F111: 18.8 | G111: 87 | H111: 0.05 | I111: 0.02 | J111: 0.29 | K111: 0 | L111: 0.87 | M111: 121.95 | N111: 59.67 | O111: 56.25 | P111: 12.62 | Q111: 30.59 | R111: 1.16 | S111: 0.01 | T111: 0.02 | U111: 0.53
B112: Итого за день | C112: =C111+C102 -> 175 | D112: =D111 -> 2.4 | E112: =E111 -> 0.3 | F112: 18.8 | G112: 87 | H112: 0.05 | I112: 0.02 | J112: 0.29 | K112: 0 | L112: 0.87 | M112: 121.95 | N112: 59.67 | O112: 56.25 | P112: 12.62 | Q112: 30.59 | R112: 1.16 | S112: 0.01 | T112: 0.02 | U112: 0.53
A114: 7 день, 2 неделя
A115: № рецептуры | B115: Прием пищи, наименование блюда | C115: Масса | D115: Пищевые вещества | G115: Энергетическая ценность | H115: Витамины | M115: Минеральные вещества
D116: Белки | E116: Жиры | F116: Углеводы | H116: B1 | I116: B2 | J116: A | K116: D | L116: C | M116: Na | N116: K | O116: Ca | P116: Mg | Q116: P | R116: Fe | S116: I | T116: Se | U116: F
C117: г | D117: г | E117: г | F117: г | G117: ккал | H117: мг | I117: мг | J117: мкг рет.экв | K117: мкг | L117: мг | M117: мг | N117: мг | O117: мг | P117: мг | Q117: мг | R117: мг | S117: мкг | T117: мкг | U117: мкг
B118: Понедельник, 2 неделя
B119: Буфет | C119: 11-18
A120: 54-21гн-2020 | B120: Какао с молоком | C120: 150 | D120: 3.5 | E120: 2.6 | F120: 9.4 | G120: 75.3 | H120: 0.03 | I120: 0.12 | J120: 12.94 | K120: 0 | L120: 0.51 | M120: 37.46 | N120: 165.25 | O120: 125.76 | P120: 25.74 | Q120: 97.71 | R120: 0.82 | S120: 8.78 | T120: 1.72 | U120: 28.69
A121: Пром. | B121: Сушка простая | C121: 20 | D121: 2.2 | E121: 0.3 | F121: 13.8 | G121: 66.1 | H121: 0.05 | I121: 0.01 | J121: 0 | K121: 0 | L121: 0 | M121: 121 | N121: 37 | O121: 6 | P121: 9.2 | Q121: 24.2 | R121: 0.58 | S121: 0 | T121: 0 | U121: 0
B122: Итого за буфет | C122: 170 | D122: 5.7 | E122: 2.9 | F122: 23.2 | G122: 141.4 | H122: 0.08 | I122: 0.13 | J122: 12.94 | K122: 0 | L122: 0.51 | M122: 158.46 | N122: 202.25 | O122: 131.76 | P122: 34.94 | Q122: 121.91 | R122: 1.4 | S122: 8.78 | T122: 1.72 | U122: 28.69
B123: Горячий завтрак | C123: 11-18
A124: ном.рец №40 | B124: Салат картофельный с морковью, зеленым горошком и растительным маслом | C124: 60 | D124: 1.6 | E124: 4.3 | F124: 5.9 | G124: 68.7 | H124: 0 | I124: 0 | J124: 0.4 | K124: 0 | L124: 3.9 | M124: 0 | N124: 0 | O124: 14.8 | P124: 13.9 | Q124: 37 | R124: 0.7 | S124: 0 | T124: 0 | U124: 0
A125: 54-4г-2020 | B125: Каша гречневая рассыпчатая | C125: 180 | D125: 9.87 | E125: 7.61 | F125: 43.12 | G125: 280.5 | H125: 0.26 | I125: 0.14 | J125: 23.02 | K125: 0.11 | L125: 0 | M125: 180 | N125: 263 | O125: 57 | P125: 144 | Q125: 217 | R125: 4.8 | S125: 26.73 | T125: 4.3 | U125: 19.27
A126: ном.рец №608 | B126: Котлета мясная Любительская, полуфабрикат в соусе | C126: 65/35 | D126: 10.04 | E126: 12.79 | F126: 8.12 | G126: 187.9 | H126: 0 | I126: 0 | J126: 38.45 | K126: 0.01 | L126: 1.15 | M126: 3 | N126: 43 | O126: 45.75 | P126: 35.13 | Q126: 173.38 | R126: 1.6 | S126: 0 | T126: 0 | U126: 0
A127: 54-2гн-2020 | B127: Чай с сахаром | C127: 200 | D127: 0.2 | E127: 0 | F127: 6.4 | G127: 26.8 | H127: 0 | I127: 0.01 | J127: 0.3 | K127: 0 | L127: 0.04 | M127: 0.68 | N127: 20.76 | O127: 66.08 | P127: 3.83 | Q127: 7.18 | R127: 0.73 | S127: 0 | T127: 0 | U127: 0
A128: Пром. | B128: Хлеб пшеничный | C128: 30 | D128: 2.3 | E128: 0.2 | F128: 14.8 | G128: 70.3 | H128: 0.03 | I128: 0.01 | J128: 0 | K128: 0 | L128: 0 | M128: 149.7 | N128: 27.9 | O128: 6 | P128: 4.2 | Q128: 19.5 | R128: 0.33 | S128: 0.96 | T128: 1.8 | U128: 4.35
A129: Пром. | B129: Хлеб ржаной | C129: 20 | D129: 1.3 | E129: 0.2 | F129: 6.7 | G129: 34.2 | H129: 0.04 | I129: 0.02 | J129: 0 | K129: 0 | L129: 0 | M129: 122 | N129: 49 | O129: 7 | P129: 9.4 | Q129: 31.6 | R129: 0.78 | S129: 0 | T129: 6.18 | U129: 0
B130: Итого за Завтрак | C130: 590 | D130: =SUM(D124:D129) -> 25.31 | E130: 25.1 | F130: 85.04 | G130: 668.4 | H130: 0.33 | I130: 0.18 | J130: 62.17 | K130: 0.12 | L130: 5.09 | M130: 455.38 | N130: 403.66 | O130: 196.63 | P130: 210.46 | Q130: 485.66 | R130: 8.94 | S130: 27.69 | T130: 12.28 | U130: 23.62
B131: Итого за день | C131: =C130+C122 -> 760 | D131: 31.01 | E131: 28 | F131: 108.24 | G131: 809.8 | H131: 0.41 | I131: 0.31 | J131: 75.11 | K131: 0.12 | L131: 5.6 | M131: 613.84 | N131: 605.91 | O131: 328.39 | P131: 245.4 | Q131: 607.57 | R131: 10.34 | S131: 36.47 | T131: 14 | U131: 52.31
A133: 8 день, 2 неделя
A134: № рецептуры | B134: Прием пищи, наименование блюда | C134: Масса | D134: Пищевые вещества | G134: Энергетическая ценность | H134: Витамины | M134: Минеральные вещества
D135: Белки | E135: Жиры | F135: Углеводы | H135: B1 | I135: B2 | J135: A | K135: D | L135: C | M135: Na | N135: K | O135: Ca | P135: Mg | Q135: P | R135: Fe | S135: I | T135: Se | U135: F
C136: г | D136: г | E136: г | F136: г | G136: ккал | H136: мг | I136: мг | J136: мкг рет.экв | K136: мкг | L136: мг | M136: мг | N136: мг | O136: мг | P136: мг | Q136: мг | R136: мг | S136: мкг | T136: мкг | U136: мкг
B137: Вторник, 2 неделя
B138: Буфет | C138: 11-18
A139: 54-13к-2020 | B139: Каша вязкая молочная пшеничная | C139: 150 | D139: 6.1 | E139: 6.9 | F139: 29 | G139: 202.7 | H139: 0.1 | I139: 0.13 | J139: 30.74 | K139: 0.1 | L139: 0.41 | M139: 256.57 | N139: 169.91 | O139: 113.68 | P139: 29.4 | Q139: 154.74 | R139: 1.64 | S139: 37.16 | T139: 24.8 | U139: 16.11
A140: 54-1гн-2020 | B140: Чай без сахара | C140: 150 | D140: 0.1 | E140: 0 | F140: 0 | G140: 1.1 | H140: 0 | I140: 0.01 | J140: 0.23 | K140: 0 | L140: 0.03 | M140: 0.47 | N140: 15.44 | O140: 49.47 | P140: 2.87 | Q140: 5.38 | R140: 0.54 | S140: 0 | T140: 0 | U140: 0
B141: Итого за буфет | C141: 300 | D141: 6.2 | E141: 6.9 | F141: 29 | G141: 203.8 | H141: 0.1 | I141: 0.14 | J141: 30.97 | K141: 0.1 | L141: 0.44 | M141: 257.04 | N141: 185.35 | O141: 163.15 | P141: 32.27 | Q141: 160.12 | R141: 2.18 | S141: 37.16 | T141: 24.8 | U141: 16.11
B142: Горячий завтрак | C142: 11-18
A143: 54-13з-2020 | B143: Салат из свеклы отварной с растительным маслом | C143: 60 | D143: 0.8 | E143: 2.7 | F143: 4.6 | G143: 45.6 | H143: 0.01 | I143: 0.02 | J143: 0.68 | K143: 0 | L143: 2.28 | M143: 78.77 | N143: 136.27 | O143: 19.21 | P143: 10.95 | Q143: 21.51 | R143: 0.7 | S143: 11.99 | T143: 0.35 | U143: 11.4
A144: 54-12м-2020 | B144: Плов с курицей | C144: 170/50 | D144: 20.34 | E144: 8.18 | F144: 36.38 | G144: 300.4 | H144: 0.08 | I144: 0.07 | J144: 159.36 | K144: 0 | L144: 2 | M144: 301 | N144: 316 | O144: 80 | P144: 87 | Q144: 193 | R144: 1.7 | S144: 41.15 | T144: 21.6 | U144: 129.9
A145: 54-3гн-2020 | B145: Чай с лимоном и сахаром | C145: 207 | D145: 0.2 | E145: 0.1 | F145: 6.6 | G145: 27.9 | H145: 0 | I145: 0.01 | J145: 0.38 | K145: 0 | L145: 1.16 | M145: 1.26 | N145: 30.23 | O145: 67 | P145: 4.56 | Q145: 8.52 | R145: 0.77 | S145: 0.01 | T145: 0.02 | U145: 0.7
A146: 54-10в-2020 | B146: Булочка ванильная | C146: 50 | D146: 3.9 | E146: 3.37 | F146: 25.39 | G146: 147.4 | H146: 0.04 | I146: 0.02 | J146: 15.93 | K146: 0.12 | L146: 0 | M146: 200 | N146: 41 | O146: 14 | P146: 5 | Q146: 33 | R146: 0.5 | S146: 27.81 | T146: 2.6 | U146: 9.19
A147: Пром. | B147: Хлеб пшеничный | C147: 30 | D147: 2.3 | E147: 0.2 | F147: 14.8 | G147: 70.3 | H147: 0.03 | I147: 0.01 | J147: 0 | K147: 0 | L147: 0 | M147: 149.7 | N147: 27.9 | O147: 6 | P147: 4.2 | Q147: 19.5 | R147: 0.33 | S147: 0.96 | T147: 1.8 | U147: 4.35
A148: Пром. | B148: Хлеб ржаной | C148: 20 | D148: 1.3 | E148: 0.2 | F148: 6.7 | G148: 34.2 | H148: 0.04 | I148: 0.02 | J148: 0 | K148: 0 | L148: 0 | M148: 122 | N148: 49 | O148: 7 | P148: 9.4 | Q148: 31.6 | R148: 0.78 | S148: 0 | T148: 6.18 | U148: 0
B149: Итого за Завтрак | C149: 587 | D149: =SUM(D143:D148) -> 28.84 | E149: =SUM(E143:E148) -> 14.75 | F149: 94.47 | G149: 625.8 | H149: 0.2 | I149: 0.15 | J149: 176.35 | K149: 0.12 | L149: 5.44 | M149: 852.73 | N149: 600.4 | O149: 193.21 | P149: 121.11 | Q149: 307.13 | R149: 4.78 | S149: 81.92 | T149: 32.55 | U149: 155.54
B150: Итого за день | C150: 887 | D150: =D149+D141 -> 35.04 | E150: =E149+E141 -> 21.65 | F150: 123.47 | G150: 829.6 | H150: 0.3 | I150: 0.29 | J150: 207.32 | K150: 0.22 | L150: 5.88 | M150: 1109.77 | N150: 785.75 | O150: 356.36 | P150: 153.38 | Q150: 467.25 | R150: 6.96 | S150: 119.08 | T150: 57.35 | U150: 171.65
A152: 9 день, 2 неделя
A153: № рецептуры | B153: Прием пищи, наименование блюда | C153: Масса | D153: Пищевые вещества | G153: Энергетическая ценность | H153: Витамины | M153: Минеральные вещества
D154: Белки | E154: Жиры | F154: Углеводы | H154: B1 | I154: B2 | J154: A | K154: D | L154: C | M154: Na | N154: K | O154: Ca | P154: Mg | Q154: P | R154: Fe | S154: I | T154: Se | U154: F
C155: г | D155: г | E155: г | F155: г | G155: ккал | H155: мг | I155: мг | J155: мкг рет.экв | K155: мкг | L155: мг | M155: мг | N155: мг | O155: мг | P155: мг | Q155: мг | R155: мг | S155: мкг | T155: мкг | U155: мкг
B156: Среда, 2 неделя
B157: Буфет | C157: 11-18
A158: 54-2гн-2020 | B158: Чай с сахаром | C158: 150 | D158: 0.1 | E158: 0 | F158: 4.8 | G158: 20.1 | H158: 0 | I158: 0.01 | J158: 0.23 | K158: 0 | L158: 0.03 | M158: 0.51 | N158: 15.57 | O158: 49.56 | P158: 2.87 | Q158: 5.38 | R158: 0.55 | S158: 0 | T158: 0 | U158: 0
A159: Пром. | B159: Сушка простая | C159: 20 | D159: 2.2 | E159: 0.3 | F159: 13.8 | G159: 66.1 | H159: 0.05 | I159: 0.01 | J159: 0 | K159: 0 | L159: 0 | M159: 121 | N159: 37 | O159: 6 | P159: 9.2 | Q159: 24.2 | R159: 0.58 | S159: 0 | T159: 0 | U159: 0
B160: Итого за буфет | C160: 170 | D160: 2.3 | E160: 0.3 | F160: 18.6 | G160: 86.2 | H160: 0.05 | I160: 0.02 | J160: 0.23 | K160: 0 | L160: 0.03 | M160: 121.51 | N160: 52.57 | O160: 55.56 | P160: 12.07 | Q160: 29.58 | R160: 1.13 | S160: 0 | T160: 0 | U160: 0
B161: Горячий завтрак | C161: 11-18
A162: 54-16з-2020 | B162: Винегрет с растительным маслом | C162: 60 | D162: 0.7 | E162: 5.4 | F162: 4 | G162: 67.1 | H162: 0.02 | I162: 0.02 | J162: 72.89 | K162: 0 | L162: 2.26 | M162: 200.99 | N162: 127.85 | O162: 12.1 | P162: 9.66 | Q162: 21.4 | R162: 0.41 | S162: 7.86 | T162: 0.13 | U162: 11.85
A163: 54-11г-2020 | B163: Картофельное пюре | C163: 200 | D163: 4.1 | E163: 7.07 | F163: 26.43 | G163: 185.8 | H163: 0.16 | I163: 0.14 | J163: 31.72 | K163: 0.12 | L163: 13 | M163: 215 | N163: 833 | O163: 53 | P163: 38 | Q163: 112 | R163: 1.3 | S163: 37.95 | T163: 1.1 | U163: 57.05
A164: 54-7р-2020 | B164: Рыба припущенная в молоко | C164: 70/30 | D164: 13.09 | E164: 7.52 | F164: 2.89 | G164: 131.6 | H164: 0.08 | I164: 0.11 | J164: 9.02 | K164: 0.16 | L164: 1 | M164: 111 | N164: 347 | O164: 68 | P164: 44 | Q164: 202 | R164: 0.7 | S164: 133.48 | T164: 11.9 | U164: 572.6
A165: 54-21гн-2020 | B165: Какао с молоком | C165: 200 | D165: 4.7 | E165: 3.5 | F165: 12.5 | G165: 100.4 | H165: 0.04 | I165: 0.16 | J165: 17.25 | K165: 0 | L165: 0.68 | M165: 49.95 | N165: 220.33 | O165: 167.68 | P165: 34.32 | Q165: 130.28 | R165: 1.09 | S165: 11.7 | T165: 2.29 | U165: 38.25
A166: Пром. | B166: Хлеб пшеничный | C166: 30 | D166: 2.3 | E166: 0.2 | F166: 14.8 | G166: 70.3 | H166: 0.03 | I166: 0.01 | J166: 0 | K166: 0 | L166: 0 | M166: 149.7 | N166: 27.9 | O166: 6 | P166: 4.2 | Q166: 19.5 | R166: 0.33 | S166: 0.96 | T166: 1.8 | U166: 4.35
A167: Пром. | B167: Хлеб ржаной | C167: 20 | D167: 1.3 | E167: 0.2 | F167: 6.7 | G167: 34.2 | H167: 0.04 | I167: 0.02 | J167: 0 | K167: 0 | L167: 0 | M167: 122 | N167: 49 | O167: 7 | P167: 9.4 | Q167: 31.6 | R167: 0.78 | S167: 0 | T167: 6.18 | U167: 0
A168: Пром. | B168: Яблоко | C168: 100 | D168: 0.6 | E168: 0.6 | F168: 14.7 | G168: 66.6 | H168: 0.04 | I168: 0.03 | J168: 7.5 | K168: 0 | L168: 15 | M168: 39 | N168: 417 | O168: 24 | P168: 14 | Q168: 17 | R168: 3.3 | S168: 3 | T168: 0.4 | U168: 12
B169: Итого за Завтрак | C169: 710 | D169: =SUM(D162:D168) -> 26.79 | E169: 24.49 | F169: 82.02 | G169: 656 | H169: 0.41 | I169: 0.49 | J169: 138.38 | K169: 0.28 | L169: 31.94 | M169: 887.64 | N169: 2022.08 | O169: 337.78 | P169: 153.58 | Q169: 533.78 | R169: 7.91 | S169: 194.95 | T169: 23.8 | U169: 696.1
B170: Итого за день | C170: =C169+C160 -> 880 | D170: =D169+D160 -> 29.09 | E170: =E169+E160 -> 24.79 | F170: 100.62 | G170: 742.2 | H170: 0.46 | I170: 0.51 | J170: 138.61 | K170: 0.28 | L170: 31.97 | M170: 1009.15 | N170: 2074.65 | O170: 393.34 | P170: 165.65 | Q170: 563.36 | R170: 9.04 | S170: 194.95 | T170: 23.8 | U170: 696.1
A172: 10 день, 2 неделя
A173: № рецептуры | B173: Прием пищи, наименование блюда | C173: Масса | D173: Пищевые вещества | G173: Энергетическая ценность | H173: Витамины | M173: Минеральные вещества
D174: Белки | E174: Жиры | F174: Углеводы | H174: B1 | I174: B2 | J174: A | K174: D | L174: C | M174: Na | N174: K | O174: Ca | P174: Mg | Q174: P | R174: Fe | S174: I | T174: Se | U174: F
C175: г | D175: г | E175: г | F175: г | G175: ккал | H175: мг | I175: мг | J175: мкг рет.экв | K175: мкг | L175: мг | M175: мг | N175: мг | O175: мг | P175: мг | Q175: мг | R175: мг | S175: мкг | T175: мкг | U175: мкг
B176: Четверг, 2 неделя
B177: Буфет | C177: 11-18
A178: 54-6к-2020 | B178: Каша вязкая молочная пшенная | C178: 150 | D178: 6.2 | E178: 7.6 | F178: 28.2 | G178: 206.2 | H178: 0.14 | I178: 0.11 | J178: 31.22 | K178: 0.1 | L178: 0.41 | M178: 254.01 | N178: 162.17 | O178: 107.34 | P178: 36.72 | Q178: 139.54 | R178: 0.99 | S178: 38.71 | T178: 2.33 | U178: 26.31
A179: 54-3гн-2020 | B179: Чай с лимоном и сахаром | C179: 155 | D179: 0.2 | E179: 0 | F179: 5 | G179: 20.9 | H179: 0 | I179: 0.01 | J179: 0.29 | K179: 0 | L179: 0.87 | M179: 0.95 | N179: 22.67 | O179: 50.25 | P179: 3.42 | Q179: 6.39 | R179: 0.58 | S179: 0.01 | T179: 0.02 | U179: 0.53
B180: Итого за буфет | C180: 305 | D180: 6.4 | E180: 7.6 | F180: 33.2 | G180: 227.1 | H180: 0.14 | I180: 0.12 | J180: 31.51 | K180: 0.1 | L180: 1.28 | M180: 254.96 | N180: 184.84 | O180: 157.59 | P180: 40.14 | Q180: 145.93 | R180: 1.57 | S180: 38.72 | T180: 2.35 | U180: 26.84
B181: Горячий завтрак | C181: 11-18
A182: ном.рец №41 | B182: Салат из отварной моркови с яблоками с растительным маслом | C182: 60 | D182: 0.6 | E182: 5.9 | F182: 4.6 | G182: 74.7 | H182: 0 | I182: 0 | J182: 0.7 | K182: 0 | L182: 1.4 | M182: 0 | N182: 0 | O182: 19.1 | P182: 13.6 | Q182: 19.6 | R182: 0.8 | S182: 0 | T182: 0 | U182: 0
A183: 54-6г-2020 | B183: Рис отварной | C183: 180 | D183: 4.32 | E183: 5.78 | F183: 43.74 | G183: 244.2 | H183: 0.04 | I183: 0.03 | J183: 22.03 | K183: 0.11 | L183: 0 | M183: 184 | N183: 56 | O183: 129 | P183: 28 | Q183: 87 | R183: 0.6 | S183: 24.91 | T183: 8.7 | U183: 32.63
A184: 54-2м-2020 | B184: Гуляш из говядины | C184: 60/40 | D184: 13.76 | E184: 13.91 | F184: 3.9 | G184: 195.8 | H184: 0.04 | I184: 0.12 | J184: 25.46 | K184: 0.07 | L184: 1 | M184: 122 | N184: 322 | O184: 55 | P184: 23 | Q184: 166 | R184: 2.5 | S184: 17.06 | T184: 0.4 | U184: 62.71
A185: 54-21гн-2020 | B185: Кофейный напиток с молоком | C185: 200 | D185: 3.9 | E185: 2.9 | F185: 11.2 | G185: 86 | H185: 0.03 | I185: 0.13 | J185: 13.29 | K185: 0 | L185: 0.52 | M185: 38.55 | N185: 183.98 | O185: 148.32 | P185: 30.67 | Q185: 106.79 | R185: 1.06 | S185: 9 | T185: 1.76 | U185: 20
A186: Пром. | B186: Хлеб пшеничный | C186: 30 | D186: 2.3 | E186: 0.2 | F186: 14.8 | G186: 70.3 | H186: 0.03 | I186: 0.01 | J186: 0 | K186: 0 | L186: 0 | M186: 149.7 | N186: 27.9 | O186: 6 | P186: 4.2 | Q186: 19.5 | R186: 0.33 | S186: 0.96 | T186: 1.8 | U186: 4.35
A187: Пром. | B187: Хлеб ржаной | C187: 20 | D187: 1.3 | E187: 0.2 | F187: 6.7 | G187: 34.2 | H187: 0.04 | I187: 0.02 | J187: 0 | K187: 0 | L187: 0 | M187: 122 | N187: 49 | O187: 7 | P187: 9.4 | Q187: 31.6 | R187: 0.78 | S187: 0 | T187: 6.18 | U187: 0
B188: Итого за Завтрак | C188: 590 | D188: =SUM(D182:D187) -> 26.18 | E188: 28.89 | F188: 84.94 | G188: 705.2 | H188: 0.18 | I188: 0.31 | J188: 61.48 | K188: 0.18 | L188: 2.92 | M188: 616.25 | N188: 638.88 | O188: 364.42 | P188: 108.87 | Q188: 430.49 | R188: 6.07 | S188: 51.93 | T188: 18.84 | U188: 119.69
B189: Итого за день | C189: =C188+C180 -> 895 | D189: =D188+D180 -> 32.58 | E189: 36.49 | F189: 118.14 | G189: 932.3 | H189: 0.32 | I189: 0.43 | J189: 92.99 | K189: 0.28 | L189: 4.2 | M189: 871.21 | N189: 823.72 | O189: 522.01 | P189: 149.01 | Q189: 576.42 | R189: 7.64 | S189: 90.65 | T189: 21.19 | U189: 146.53
A191: 11 день, 2 неделя
A192: № рецептуры | B192: Прием пищи, наименование блюда | C192: Масса | D192: Пищевые вещества | G192: Энергетическая ценность | H192: Витамины | M192: Минеральные вещества
D193: Белки | E193: Жиры | F193: Углеводы | H193: B1 | I193: B2 | J193: A | K193: D | L193: C | M193: Na | N193: K | O193: Ca | P193: Mg | Q193: P | R193: Fe | S193: I | T193: Se | U193: F
C194: г | D194: г | E194: г | F194: г | G194: ккал | H194: мг | I194: мг | J194: мкг рет.экв | K194: мкг | L194: мг | M194: мг | N194: мг | O194: мг | P194: мг | Q194: мг | R194: мг | S194: мкг | T194: мкг | U194: мкг
B195: Пятница, 2 неделя
B196: Буфет | C196: 11-18
A197: 54-9к-2020 | B197: Каша вязкая молочная овсяная | C197: 150 | D197: 6.4 | E197: 8.4 | F197: 25.7 | G197: 204.6 | H197: 0.15 | I197: 0.13 | J197: 30.15 | K197: 0.1 | L197: 0.39 | M197: 259.99 | N197: 205.54 | O197: 118.23 | P197: 47.12 | Q197: 175.03 | R197: 1.38 | S197: 38.44 | T197: 10.92 | U197: 46.71
A198: 54-2гн-2020 | B198: Чай с сахаром | C198: 150 | D198: 0.1 | E198: 0 | F198: 4.8 | G198: 20.1 | H198: 0 | I198: 0.01 | J198: 0.23 | K198: 0 | L198: 0.03 | M198: 0.51 | N198: 15.57 | O198: 49.56 | P198: 2.87 | Q198: 5.38 | R198: 0.55 | S198: 0 | T198: 0 | U198: 0
B199: Итого за буфет | C199: 300 | D199: 6.5 | E199: 8.4 | F199: 30.5 | G199: 224.7 | H199: 0.15 | I199: 0.14 | J199: 30.38 | K199: 0.1 | L199: 0.42 | M199: 260.5 | N199: 221.11 | O199: 167.79 | P199: 49.99 | Q199: 180.41 | R199: 1.93 | S199: 38.44 | T199: 10.92 | U199: 46.71
B200: Горячий завтрак | C200: 11-18
A201: 54-13з-2020 | B201: Салат из свеклы отварной с растительным маслом | C201: 60 | D201: 0.8 | E201: 2.7 | F201: 4.6 | G201: 45.6 | H201: 0.01 | I201: 0.02 | J201: 0.68 | K201: 0 | L201: 2.28 | M201: 78.77 | N201: 136.27 | O201: 19.21 | P201: 10.95 | Q201: 21.51 | R201: 0.7 | S201: 11.99 | T201: 0.35 | U201: 11.4
A202: 54-1г-2020 | B202: Макароны отварные | C202: 180 | D202: 6.39 | E202: 5.91 | F202: 39.36 | G202: 236.2 | H202: 0.07 | I202: 0.03 | J202: 22.03 | K202: 0.11 | L202: 0 | M202: 179 | N202: 64 | O202: 127 | P202: 9 | Q202: 48 | R202: 0.9 | S202: 24.92 | T202: 0.1 | U202: 14.31
A203: ном.рец №174 | B203: Тефтели мясные из говядины, полуфабрикат в соусе | C203: 75/30 | D203: 10.81 | E203: 10.4 | F203: 8.42 | G203: 168.9 | H203: 0 | I203: 0 | J203: 38.45 | K203: 0.01 | L203: 1.79 | M203: 3 | N203: 43 | O203: 45.75 | P203: 35.13 | Q203: 109 | R203: 1.6 | S203: 0 | T203: 0 | U203: 0
A204: 54-4гн-2020 | B204: Компот из кураги | C204: 200 | D204: 0.98 | E204: 0.05 | F204: 15.64 | G204: 66.9 | H204: 0.01 | I204: 0.03 | J204: 69.96 | K204: 0 | L204: 0 | M204: 3 | N204: 285 | O204: 90 | P204: 18 | Q204: 25 | R204: 0.6 | S204: 0 | T204: 0 | U204: 0
A205: Пром. | B205: Хлеб ржаной | C205: 20 | D205: 1.3 | E205: 0.2 | F205: 6.7 | G205: 34.2 | H205: 0.04 | I205: 0.02 | J205: 0 | K205: 0 | L205: 0 | M205: 122 | N205: 49 | O205: 7 | P205: 9.4 | Q205: 31.6 | R205: 0.78 | S205: 0 | T205: 6.18 | U205: 0
A206: Пром. | B206: Хлеб пшеничный | C206: 30 | D206: 2.3 | E206: 0.2 | F206: 14.8 | G206: 70.3 | H206: 0.03 | I206: 0.01 | J206: 0 | K206: 0 | L206: 0 | M206: 149.7 | N206: 27.9 | O206: 6 | P206: 4.2 | Q206: 19.5 | R206: 0.33 | S206: 0.96 | T206: 1.8 | U206: 4.35
B207: Итого за Завтрак | C207: 595 | D207: =SUM(D201:D206) -> 22.58 | E207: 19.46 | F207: 89.52 | G207: 622.1 | H207: 0.16 | I207: 0.11 | J207: 131.12 | K207: 0.12 | L207: 4.07 | M207: 535.47 | N207: 605.17 | O207: 294.96 | P207: 86.68 | Q207: 254.61 | R207: 4.91 | S207: 37.87 | T207: 8.43 | U207: 30.06
B208: Итого за день | C208: =C207+C199 -> 895 | D208: 29.08 | E208: 27.86 | F208: 120.02 | G208: 846.8 | H208: 0.31 | I208: 0.25 | J208: 161.5 | K208: 0.22 | L208: 4.49 | M208: 795.97 | N208: 826.28 | O208: 462.75 | P208: 136.67 | Q208: 435.02 | R208: 6.84 | S208: 76.31 | T208: 19.35 | U208: 76.77
A210: 12 день, 2 неделя
A211: № рецептуры | B211: Прием пищи, наименование блюда | C211: Масса | D211: Пищевые вещества | G211: Энергетическая ценность | H211: Витамины | M211: Минеральные вещества
D212: Белки | E212: Жиры | F212: Углеводы | H212: B1 | I212: B2 | J212: A | K212: D | L212: C | M212: Na | N212: K | O212: Ca | P212: Mg | Q212: P | R212: Fe | S212: I | T212: Se | U212: F
C213: г | D213: г | E213: г | F213: г | G213: ккал | H213: мг | I213: мг | J213: мкг рет.экв | K213: мкг | L213: мг | M213: мг | N213: мг | O213: мг | P213: мг | Q213: мг | R213: мг | S213: мкг | T213: мкг | U213: мкг
B214: Суббота, 2 неделя
... 16 more rows

Sheet овз 11-18 лет село
A1: Согласовано | O1: Утверждено
O2: ООО "КРЕПЫШ"
O3: _______________________Ефремов В.Ю.
A6: Меню для организации питания детей с ОВЗ в возрасте от 11 до 18 лет в образовательных учреждениях Мензелинского района РТ на 2 полугодие 2021-2022 учебный год.
A8: 1 день, 1 неделя
A9: № рецептуры | B9: Прием пищи, наименование блюда | C9: Масса | D9: Пищевые вещества | G9: Энергетическая ценность | H9: Витамины | M9: Минеральные вещества
D10: Белки | E10: Жиры | F10: Углеводы | H10: B1 | I10: B2 | J10: A | K10: D | L10: C | M10: Na | N10: K | O10: Ca | P10: Mg | Q10: P | R10: Fe | S10: I | T10: Se | U10: F
C11: г | D11: г | E11: г | F11: г | G11: ккал | H11: мг | I11: мг | J11: мкг рет.экв | K11: мкг | L11: мг | M11: мг | N11: мг | O11: мг | P11: мг | Q11: мг | R11: мг | S11: мкг | T11: мкг | U11: мкг
B12: Понедельник, 1 неделя
B13: Буфет | C13: 11-18
A14: 54-3гн-2020 | B14: Чай с лимоном и сахаром | C14: 155 | D14: 0.2 | E14: 0 | F14: 5 | G14: 20.9 | H14: 0 | I14: 0.01 | J14: 0.29 | K14: 0 | L14: 0.87 | M14: 0.95 | N14: 22.67 | O14: 50.25 | P14: 3.42 | Q14: 6.39 | R14: 0.58 | S14: 0.01 | T14: 0.02 | U14: 0.53
A15: Пром. | B15: Сушка простая | C15: 20 | D15: 2.2 | E15: 0.3 | F15: 13.8 | G15: 66.1 | H15: 0.05 | I15: 0.01 | J15: 0 | K15: 0 | L15: 0 | M15: 121 | N15: 37 | O15: 6 | P15: 9.2 | Q15: 24.2 | R15: 0.58 | S15: 0 | T15: 0 | U15: 0
B16: Итого за буфет | C16: 175 | D16: 2.4 | E16: 0.3 | F16: 18.8 | G16: 87 | H16: 0.05 | I16: 0.02 | J16: 0.29 | K16: 0 | L16: 0.87 | M16: 121.95 | N16: 59.67 | O16: 56.25 | P16: 12.62 | Q16: 30.59 | R16: 1.16 | S16: 0.01 | T16: 0.02 | U16: 0.53
B17: Горячий завтрак | C17: 11-18
A18: ном.рец №41 | B18: Салат из отварной моркови с яблоками с растительным маслом | C18: 60 | D18: 0.6 | E18: 5.9 | F18: 4.6 | G18: 74.7 | H18: 0 | I18: 0 | J18: 0.7 | K18: 0 | L18: 1.4 | M18: 0 | N18: 0 | O18: 19.1 | P18: 13.6 | Q18: 19.6 | R18: 0.8 | S18: 0 | T18: 0 | U18: 0
A19: 54-4г-2020 | B19: Каша гречневая рассыпчатая | C19: 180 | D19: 9.87 | E19: 7.61 | F19: 43.12 | G19: 280.5 | H19: 0.26 | I19: 0.14 | J19: 23.02 | K19: 0.11 | L19: 0 | M19: 180 | N19: 263 | O19: 57 | P19: 144 | Q19: 217 | R19: 4.8 | S19: 26.73 | T19: 4.3 | U19: 19.27
A20: ном.рец №174 | B20: Тефтели мясные из говядины, полуфабрикат в соусе | C20: 75/30 | D20: 10.81 | E20: 10.4 | F20: 8.42 | G20: 168.9 | H20: 0 | I20: 0 | J20: 38.45 | K20: 0.01 | L20: 1.79 | M20: 3 | N20: 43 | O20: 45.75 | P20: 35.13 | Q20: 109 | R20: 1.6 | S20: 0 | T20: 0 | U20: 0
A21: 54-4гн-2020 | B21: Чай с молоком и сахаром | C21: 200 | D21: 1.6 | E21: 1.1 | F21: 8.6 | G21: 50.9 | H21: 0.01 | I21: 0.07 | J21: 6.9 | K21: 0 | L21: 0.3 | M21: 19.68 | N21: 81.35 | O21: 103.48 | P21: 9.92 | Q21: 46.33 | R21: 0.78 | S21: 4.5 | T21: 0.88 | U21: 10
A22: Пром. | B22: Хлеб пшеничный | C22: 30 | D22: 2.3 | E22: 0.2 | F22: 14.8 | G22: 70.3 | H22: 0.03 | I22: 0.01 | J22: 0 | K22: 0 | L22: 0 | M22: 149.7 | N22: 27.9 | O22: 6 | P22: 4.2 | Q22: 19.5 | R22: 0.33 | S22: 0.96 | T22: 1.8 | U22: 4.35
A23: Пром. | B23: Хлеб ржаной | C23: 20 | D23: 1.3 | E23: 0.2 | F23: 6.7 | G23: 34.2 | H23: 0.04 | I23: 0.02 | J23: 0 | K23: 0 | L23: 0 | M23: 122 | N23: 49 | O23: 7 | P23: 9.4 | Q23: 31.6 | R23: 0.78 | S23: 0 | T23: 6.18 | U23: 0
B24: Итого за Завтрак | C24: 595 | D24: =SUM(D18:D23) -> 26.48 | E24: 25.41 | F24: 86.24 | G24: 679.5 | H24: 0.34 | I24: 0.24 | J24: 69.07 | K24: 0.12 | L24: 3.49 | M24: 474.38 | N24: 464.25 | O24: 238.33 | P24: 216.25 | Q24: 443.03 | R24: 9.09 | S24: 32.19 | T24: 13.16 | U24: 33.62
B25: Итого за день | C25: =C24+C16 -> 770 | D25: 28.88 | E25: 25.71 | F25: 105.04 | G25: 766.5 | H25: 0.39 | I25: 0.26 | J25: 69.36 | K25: 0.12 | L25: 4.36 | M25: 596.33 | N25: 523.92 | O25: 294.58 | P25: 228.87 | Q25: 473.62 | R25: 10.25 | S25: 32.2 | T25: 13.18 | U25: 34.15
A27: 2 день, 1 неделя
A28: № рецептуры | B28: Прием пищи, наименование блюда | C28: Масса | D28: Пищевые вещества | G28: Энергетическая ценность | H28: Витамины | M28: Минеральные вещества
D29: Белки | E29: Жиры | F29: Углеводы | H29: B1 | I29: B2 | J29: A | K29: D | L29: C | M29: Na | N29: K | O29: Ca | P29: Mg | Q29: P | R29: Fe | S29: I | T29: Se | U29: F
C30: г | D30: г | E30: г | F30: г | G30: ккал | H30: мг | I30: мг | J30: мкг рет.экв | K30: мкг | L30: мг | M30: мг | N30: мг | O30: мг | P30: мг | Q30: мг | R30: мг | S30: мкг | T30: мкг | U30: мкг
B31: Вторник, 1 неделя
B32: Буфет | C32: 11-18
A33: 54-13к-2020 | B33: Каша вязкая молочная пшеничная | C33: 150 | D33: 6.1 | E33: 6.9 | F33: 29 | G33: 202.7 | H33: 0.1 | I33: 0.13 | J33: 30.74 | K33: 0.1 | L33: 0.41 | M33: 256.57 | N33: 169.91 | O33: 113.68 | P33: 29.4 | Q33: 154.74 | R33: 1.64 | S33: 37.16 | T33: 24.8 | U33: 16.11
A34: 54-1гн-2020 | B34: Чай без сахара | C34: 150 | D34: 0.1 | E34: 0 | F34: 0 | G34: 1.1 | H34: 0 | I34: 0.01 | J34: 0.23 | K34: 0 | L34: 0.03 | M34: 0.47 | N34: 15.44 | O34: 49.47 | P34: 2.87 | Q34: 5.38 | R34: 0.54 | S34: 0 | T34: 0 | U34: 0
B35: Итого за буфет | C35: 300 | D35: 6.2 | E35: 6.9 | F35: 29 | G35: 203.8 | H35: 0.1 | I35: 0.14 | J35: 30.97 | K35: 0.1 | L35: 0.44 | M35: 257.04 | N35: 185.35 | O35: 163.15 | P35: 32.27 | Q35: 160.12 | R35: 2.18 | S35: 37.16 | T35: 24.8 | U35: 16.11
B36: Горячий завтрак | C36: 11-18
A37: 54-16з-2020 | B37: Винегрет с растительным маслом | C37: 60 | D37: 0.7 | E37: 5.4 | F37: 4 | G37: 67.1 | H37: 0.02 | I37: 0.02 | J37: 72.89 | K37: 0 | L37: 2.26 | M37: 200.99 | N37: 127.85 | O37: 12.1 | P37: 9.66 | Q37: 21.4 | R37: 0.41 | S37: 7.86 | T37: 0.13 | U37: 11.85
A38: 54-22м-2020 | B38: Рагу из курицы | C38: 160/60 | D38: 23.05 | E38: 7.74 | F38: 19.27 | G38: 239 | H38: 0.15 | I38: 0.12 | J38: 285.64 | K38: 0 | L38: 13 | M38: 310 | N38: 812 | O38: 34 | P38: 102 | Q38: 213 | R38: 2.3 | S38: 47.26 | T38: 18.7 | U38: 172
A39: 54-21гн-2020 | B39: Какао с молоком | C39: 200 | D39: 4.7 | E39: 3.5 | F39: 12.5 | G39: 100.4 | H39: 0.04 | I39: 0.16 | J39: 17.25 | K39: 0 | L39: 0.68 | M39: 49.95 | N39: 220.33 | O39: 167.68 | P39: 34.32 | Q39: 130.28 | R39: 1.09 | S39: 11.7 | T39: 2.29 | U39: 38.25
A40: 54-10в-2020 | B40: Булочка ванильная | C40: 50 | D40: 3.9 | E40: 3.37 | F40: 25.37 | G40: 147.4 | H40: 0.04 | I40: 0.02 | J40: 15.93 | K40: 0.12 | L40: 0 | M40: 200 | N40: 41 | O40: 14 | P40: 5 | Q40: 33 | R40: 0.5 | S40: 27.814 | T40: 2.6 | U40: 9.19
A41: Пром. | B41: Хлеб пшеничный | C41: 30 | D41: 2.3 | E41: 0.2 | F41: 14.8 | G41: 70.3 | H41: 0.03 | I41: 0.01 | J41: 0 | K41: 0 | L41: 0 | M41: 149.7 | N41: 27.9 | O41: 6 | P41: 4.2 | Q41: 19.5 | R41: 0.33 | S41: 0.96 | T41: 1.8 | U41: 4.35
A42: Пром. | B42: Хлеб ржаной | C42: 20 | D42: 1.3 | E42: 0.2 | F42: 6.7 | G42: 34.2 | H42: 0.04 | I42: 0.02 | J42: 0 | K42: 0 | L42: 0 | M42: 122 | N42: 49 | O42: 7 | P42: 9.4 | Q42: 31.6 | R42: 0.78 | S42: 0 | T42: 6.18 | U42: 0
B43: Итого за Завтрак | C43: 580 | D43: =SUM(D37:D42) -> 35.95 | E43: =SUM(E37:E42) -> 20.41 | F43: 82.64 | G43: 658.4 | H43: 0.32 | I43: 0.35 | J43: 391.71 | K43: 0.12 | L43: 15.94 | M43: 1032.64 | N43: 1278.08 | O43: 240.78 | P43: 164.58 | Q43: 448.78 | R43: 5.41 | S43: 95.594 | T43: 31.7 | U43: 235.64
B44: Итого за день | C44: 880 | D44: =D43+D35 -> 42.15 | E44: =E43+E35 -> 27.31 | F44: 111.64 | G44: 862.2 | H44: 0.42 | I44: 0.49 | J44: 422.68 | K44: 0.22 | L44: 16.38 | M44: 1289.68 | N44: 1463.43 | O44: 403.93 | P44: 196.85 | Q44: 608.9 | R44: 7.59 | S44: 132.754 | T44: 56.5 | U44: 251.75
A46: 3 день, 1 неделя
A47: № рецептуры | B47: Прием пищи, наименование блюда | C47: Масса | D47: Пищевые вещества | G47: Энергетическая ценность | H47: Витамины | M47: Минеральные вещества
D48: Белки | E48: Жиры | F48: Углеводы | H48: B1 | I48: B2 | J48: A | K48: D | L48: C | M48: Na | N48: K | O48: Ca | P48: Mg | Q48: P | R48: Fe | S48: I | T48: Se | U48: F
C49: г | D49: г | E49: г | F49: г | G49: ккал | H49: мг | I49: мг | J49: мкг рет.экв | K49: мкг | L49: мг | M49: мг | N49: мг | O49: мг | P49: мг | Q49: мг | R49: мг | S49: мкг | T49: мкг | U49: мкг
B50: Среда, 1 неделя
B51: Буфет | C51: 11-18
A52: 54-4гн-2020 | B52: Чай с молоком и сахаром | C52: 150 | D52: 1.2 | E52: 0.9 | F52: 6.5 | G52: 38.2 | H52: 0.01 | I52: 0.05 | J52: 5.18 | K52: 0 | L52: 0.23 | M52: 14.76 | N52: 61.01 | O52: 77.61 | P52: 7.44 | Q52: 34.75 | R52: 0.58 | S52: 3.38 | T52: 0.66 | U52: 7.5
A53: Пром. | B53: Сушка простая | C53: 20 | D53: 2.2 | E53: 0.3 | F53: 13.8 | G53: 66.1 | H53: 0.05 | I53: 0.01 | J53: 0 | K53: 0 | L53: 0 | M53: 121 | N53: 37 | O53: 6 | P53: 9.2 | Q53: 24.2 | R53: 0.58 | S53: 0 | T53: 0 | U53: 0
B54: Итого за буфет | C54: 170 | D54: 3.4 | E54: 1.2 | F54: 20.3 | G54: 104.3 | H54: 0.06 | I54: 0.06 | J54: 5.18 | K54: 0 | L54: 0.23 | M54: 135.76 | N54: 98.01 | O54: 83.61 | P54: 16.64 | Q54: 58.95 | R54: 1.16 | S54: 3.38 | T54: 0.66 | U54: 7.5
B55: Горячий завтрак | C55: 11-18
A56: ном.рец №40 | B56: Салат картофельный с морковью, зеленым горошком и растительным маслом | C56: 60 | D56: 1.6 | E56: 4.3 | F56: 5.9 | G56: 68.7 | H56: 0 | I56: 0 | J56: 0.4 | K56: 0 | L56: 3.9 | M56: 0 | N56: 0 | O56: 14.8 | P56: 13.9 | Q56: 37 | R56: 0.7 | S56: 0 | T56: 0 | U56: 0
A57: 54-1г-2020 | B57: Макароны отварные | C57: 180 | D57: 6.39 | E57: 5.91 | F57: 39.36 | G57: 236.2 | H57: 0.07 | I57: 0.03 | J57: 22.03 | K57: 0.11 | L57: 0 | M57: 179 | N57: 64 | O57: 127 | P57: 9 | Q57: 48 | R57: 0.9 | S57: 24.92 | T57: 0.1 | U57: 14.31
A58: №243 | B58: Сосиски говяжьи отварные, п/ф (2 шт) | C58: 100 | D58: 13.2 | E58: 22.84 | F58: 1.8 | G58: 247.15 | H58: 0 | I58: 0 | J58: 0.08 | K58: 0.01 | L58: 0 | M58: 0 | N58: 0 | O58: 7.44 | P58: 15.51 | Q58: 137.39 | R58: 1.74 | S58: 0 | T58: 0 | U58: 0
A59: 54-3гн-2020 | B59: Чай с лимоном и сахаром | C59: 207 | D59: 0.2 | E59: 0.1 | F59: 6.6 | G59: 27.9 | H59: 0 | I59: 0.01 | J59: 0.38 | K59: 0 | L59: 1.16 | M59: 1.26 | N59: 30.23 | O59: 67 | P59: 4.56 | Q59: 8.52 | R59: 0.77 | S59: 0.01 | T59: 0.02 | U59: 0.7
A60: Пром. | B60: Хлеб ржаной | C60: 20 | D60: 1.3 | E60: 0.2 | F60: 6.7 | G60: 34.2 | H60: 0.04 | I60: 0.02 | J60: 0 | K60: 0 | L60: 0 | M60: 122 | N60: 49 | O60: 7 | P60: 9.4 | Q60: 31.6 | R60: 0.78 | S60: 0 | T60: 6.18 | U60: 0
A61: Пром. | B61: Хлеб пшеничный | C61: 30 | D61: 2.3 | E61: 0.2 | F61: 14.8 | G61: 70.3 | H61: 0.03 | I61: 0.01 | J61: 0 | K61: 0 | L61: 0 | M61: 149.7 | N61: 27.9 | O61: 6 | P61: 4.2 | Q61: 19.5 | R61: 0.33 | S61: 0.96 | T61: 1.8 | U61: 4.35
B62: Итого за Завтрак | C62: =SUM(C56:C61) -> 597 | D62: =SUM(D56:D61) -> 24.99 | E62: =SUM(E56:E61) -> 33.55 | F62: 75.16 | G62: 684.45 | H62: 0.14 | I62: 0.07 | J62: 22.89 | K62: 0.12 | L62: 5.06 | M62: 451.96 | N62: 171.13 | O62: 229.24 | P62: 56.57 | Q62: 282.01 | R62: 5.22 | S62: 25.89 | T62: 8.1 | U62: 19.36
B63: Итого за день | C63: =C62+C54 -> 767 | D63: =D62+D54 -> 28.39 | E63: =E62+E54 -> 34.75 | F63: =F62+F54 -> 95.46 | G63: =G62+G54 -> 788.75 | H63: =H62+H54 -> 0.2 | I63: =I62+I54 -> 0.13 | J63: =J62+J54 -> 28.07 | K63: =K62+K54 -> 0.12 | L63: =L62+L54 -> 5.29 | M63: =M62+M54 -> 587.72 | N63: =N62+N54 -> 269.14 | O63: =O62+O54 -> 312.85 | P63: =P62+P54 -> 73.21 | Q63: =Q62+Q54 -> 340.96 | R63: =R62+R54 -> 6.38 | S63: =S62+S54 -> 29.27 | T63: =T62+T54 -> 8.76 | U63: =U62+U54 -> 26.86
A65: 4 день, 1 неделя
A66: № рецептуры | B66: Прием пищи, наименование блюда | C66: Масса | D66: Пищевые вещества | G66: Энергетическая ценность | H66: Витамины | M66: Минеральные вещества
D67: Белки | E67: Жиры | F67: Углеводы | H67: B1 | I67: B2 | J67: A | K67: D | L67: C | M67: Na | N67: K | O67: Ca | P67: Mg | Q67: P | R67: Fe | S67: I | T67: Se | U67: F
C68: г | D68: г | E68: г | F68: г | G68: ккал | H68: мг | I68: мг | J68: мкг рет.экв | K68: мкг | L68: мг | M68: мг | N68: мг | O68: мг | P68: мг | Q68: мг | R68: мг | S68: мкг | T68: мкг | U68: мкг
B69: Четверг, 1 неделя
B70: Буфет | C70: 11-18
A71: 54-6к-2020 | B71: Каша вязкая молочная пшенная | C71: 150 | D71: 6.2 | E71: 7.6 | F71: 28.2 | G71: 206.2 | H71: 0.14 | I71: 0.11 | J71: 31.22 | K71: 0.1 | L71: 0.41 | M71: 254.01 | N71: 162.17 | O71: 107.34 | P71: 36.72 | Q71: 139.54 | R71: 0.99 | S71: 38.71 | T71: 2.33 | U71: 26.31
A72: 54-1гн-2020 | B72: Чай без сахара | C72: 150 | D72: 0.1 | E72: 0 | F72: 0 | G72: 1.1 | H72: 0 | I72: 0.01 | J72: 0.23 | K72: 0 | L72: 0.03 | M72: 0.47 | N72: 15.44 | O72: 49.47 | P72: 2.87 | Q72: 5.38 | R72: 0.54 | S72: 0 | T72: 0 | U72: 0
B73: Итого за буфет | C73: 300 | D73: 6.3 | E73: 7.6 | F73: 28.2 | G73: 207.3 | H73: 0.14 | I73: 0.12 | J73: 31.45 | K73: 0.1 | L73: 0.44 | M73: 254.48 | N73: 177.61 | O73: 156.81 | P73: 39.59 | Q73: 144.92 | R73: 1.53 | S73: 38.71 | T73: 2.33 | U73: 26.31
B74: Горячий завтрак | C74: 11-18
A75: 54-13з-2020 | B75: Салат из свеклы отварной с растительным маслом | C75: 60 | D75: 0.8 | E75: 2.7 | F75: 4.6 | G75: 45.6 | H75: 0.01 | I75: 0.02 | J75: 0.68 | K75: 0 | L75: 2.28 | M75: 78.77 | N75: 136.27 | O75: 19.21 | P75: 10.95 | Q75: 21.51 | R75: 0.7 | S75: 11.99 | T75: 0.35 | U75: 11.4
A76: 54-11г-2020 | B76: Картофельное пюре | C76: 200 | D76: 4.1 | E76: 7.07 | F76: 26.43 | G76: 185.8 | H76: 0.16 | I76: 0.14 | J76: 31.72 | K76: 0.12 | L76: 13 | M76: 215 | N76: 833 | O76: 53 | P76: 38 | Q76: 112 | R76: 1.3 | S76: 37.95 | T76: 1.1 | U76: 57.05
A77: ном.рец №608 | B77: Котлета мясная Любительская, полуфабрикат в соусе | C77: 65/35 | D77: 10.04 | E77: 12.79 | F77: 8.12 | G77: 187.9 | H77: 0 | I77: 0 | J77: 38.45 | K77: 0.01 | L77: 1.15 | M77: 3 | N77: 43 | O77: 45.75 | P77: 35.13 | Q77: 173.38 | R77: 1.6 | S77: 0 | T77: 0 | U77: 0
A78: 54-2гн-2020 | B78: Кофейный напиток с молоком | C78: 200 | D78: 3.9 | E78: 2.9 | F78: 11.2 | G78: 86 | H78: 0.03 | I78: 0.13 | J78: 13.29 | K78: 0 | L78: 0.52 | M78: 38.55 | N78: 183.98 | O78: 148.32 | P78: 30.67 | Q78: 106.79 | R78: 1.06 | S78: 9 | T78: 1.76 | U78: 20
A79: Пром. | B79: Хлеб ржаной | C79: 20 | D79: 1.3 | E79: 0.2 | F79: 6.7 | G79: 34.2 | H79: 0.04 | I79: 0.02 | J79: 0 | K79: 0 | L79: 0 | M79: 122 | N79: 49 | O79: 7 | P79: 9.4 | Q79: 31.6 | R79: 0.78 | S79: 0 | T79: 6.18 | U79: 0
A80: Пром. | B80: Хлеб пшеничный | C80: 30 | D80: 2.3 | E80: 0.2 | F80: 14.8 | G80: 70.3 | H80: 0.03 | I80: 0.01 | J80: 0 | K80: 0 | L80: 0 | M80: 149.7 | N80: 27.9 | O80: 6 | P80: 4.2 | Q80: 19.5 | R80: 0.33 | S80: 0.96 | T80: 1.8 | U80: 4.35
B81: Итого за Завтрак | C81: 610 | D81: =SUM(D75:D80) -> 22.44 | E81: 25.86 | F81: 71.85 | G81: 609.8 | H81: 0.27 | I81: 0.32 | J81: 84.14 | K81: 0.13 | L81: 16.95 | M81: 607.02 | N81: 1273.15 | O81: 279.28 | P81: 128.35 | Q81: 464.78 | R81: 5.77 | S81: 59.9 | T81: 11.19 | U81: 92.8
B82: Итого за день | C82: =C81+C73 -> 910 | D82: =D81+D73 -> 28.74 | E82: 33.46 | F82: 100.05 | G82: 817.1 | H82: 0.41 | I82: 0.44 | J82: 115.59 | K82: 0.23 | L82: 17.39 | M82: 861.5 | N82: 1450.76 | O82: 436.09 | P82: 167.94 | Q82: 609.7 | R82: 7.3 | S82: 98.61 | T82: 13.52 | U82: 119.11
A84: 5 день, 1 неделя
A85: № рецептуры | B85: Прием пищи, наименование блюда | C85: Масса | D85: Пищевые вещества | G85: Энергетическая ценность | H85: Витамины | M85: Минеральные вещества
D86: Белки | E86: Жиры | F86: Углеводы | H86: B1 | I86: B2 | J86: A | K86: D | L86: C | M86: Na | N86: K | O86: Ca | P86: Mg | Q86: P | R86: Fe | S86: I | T86: Se | U86: F
C87: г | D87: г | E87: г | F87: г | G87: ккал | H87: мг | I87: мг | J87: мкг рет.экв | K87: мкг | L87: мг | M87: мг | N87: мг | O87: мг | P87: мг | Q87: мг | R87: мг | S87: мкг | T87: мкг | U87: мкг
B88: Пятница, 1 неделя
B89: Буфет | C89: 11-18
A90: 54-1г-2020 | B90: Макароны отварные | C90: 150 | D90: 5.3 | E90: 4.9 | F90: 32.8 | G90: 196.8 | H90: 0.06 | I90: 0.02 | J90: 18.36 | K90: 0.09 | L90: 0 | M90: 149.04 | N90: 53.8 | O90: 105.83 | P90: 7.19 | Q90: 40.7 | R90: 0.73 | S90: 20.77 | T90: 0.06 | U90: 11.92
A91: 54-2гн-2020 | B91: Чай с сахаром | C91: 150 | D91: 0.1 | E91: 0 | F91: 4.8 | G91: 20.1 | H91: 0 | I91: 0.01 | J91: 0.23 | K91: 0 | L91: 0.03 | M91: 0.51 | N91: 15.57 | O91: 49.56 | P91: 2.87 | Q91: 5.38 | R91: 0.55 | S91: 0 | T91: 0 | U91: 0
B92: Итого за буфет | C92: 300 | D92: 5.4 | E92: 4.9 | F92: 37.6 | G92: 216.9 | H92: 0.06 | I92: 0.03 | J92: 18.59 | K92: 0.09 | L92: 0.03 | M92: 149.55 | N92: 69.37 | O92: 155.39 | P92: 10.06 | Q92: 46.08 | R92: 1.28 | S92: 20.77 | T92: 0.06 | U92: 11.92
B93: Горячий завтрак | C93: 11-18
A94: 54-11з-2020 | B94: Салат из моркови с яблоками с растительным маслом | C94: 60 | D94: 0.5 | E94: 6.1 | F94: 4.3 | G94: 74.3 | H94: 0.03 | I94: 0.03 | J94: 732.9 | K94: 0 | L94: 3.63 | M94: 89.79 | N94: 123.26 | O94: 13.5 | P94: 15.57 | Q94: 22.38 | R94: 0.66 | S94: 10.19 | T94: 0.09 | U94: 21.57
A95: 54-6г-2020 | B95: Плов из говядины | C95: 180/40 | D95: 16.86 | E95: 16.22 | F95: 42.44 | G95: 383.1 | H95: 0.07 | I95: 0.13 | J95: 287.76 | K95: 0.11 | L95: 0 | M95: 304 | N95: 295 | O95: 128 | P95: 48 | Q95: 213 | R95: 2.4 | S95: 42.53 | T95: 8.1 | U95: 89.91
A96: 54-4гн-2020 | B96: Компот из кураги | C96: 200 | D96: 0.98 | E96: 0.05 | F96: 15.64 | G96: 66.9 | H96: 0.01 | I96: 0.03 | J96: 69.96 | K96: 0 | L96: 0 | M96: 3 | N96: 285 | O96: 90 | P96: 18 | Q96: 25 | R96: 0.6 | S96: 0 | T96: 0 | U96: 0
A97: Пром. | B97: Хлеб ржаной | C97: 20 | D97: 1.3 | E97: 0.2 | F97: 6.7 | G97: 34.2 | H97: 0.04 | I97: 0.02 | J97: 0 | K97: 0 | L97: 0 | M97: 122 | N97: 49 | O97: 7 | P97: 9.4 | Q97: 31.6 | R97: 0.78 | S97: 0 | T97: 6.18 | U97: 0
A98: Пром. | B98: Хлеб пшеничный | C98: 30 | D98: 2.3 | E98: 0.2 | F98: 14.8 | G98: 70.3 | H98: 0.03 | I98: 0.01 | J98: 0 | K98: 0 | L98: 0 | M98: 149.7 | N98: 27.9 | O98: 6 | P98: 4.2 | Q98: 19.5 | R98: 0.33 | S98: 0.96 | T98: 1.8 | U98: 4.35
B99: Итого за Завтрак | C99: 530 | D99: =SUM(D94:D98) -> 21.94 | E99: =SUM(E94:E98) -> 22.77 | F99: 83.88 | G99: 628.8 | H99: 0.18 | I99: 0.22 | J99: 1090.62 | K99: 0.11 | L99: 3.63 | M99: 668.49 | N99: 780.16 | O99: 244.5 | P99: 95.17 | Q99: 311.48 | R99: 4.77 | S99: 53.68 | T99: 16.17 | U99: 115.83
B100: Итого за день | C100: =C99+C92 -> 830 | D100: 27.34 | E100: 27.67 | F100: 121.48 | G100: 845.7 | H100: 0.24 | I100: 0.25 | J100: 1109.21 | K100: 0.2 | L100: 3.66 | M100: 818.04 | N100: 849.53 | O100: 399.89 | P100: 105.23 | Q100: 357.56 | R100: 6.05 | S100: 74.45 | T100: 16.23 | U100: 127.75
A102: 6 день, 1 неделя
A103: № рецептуры | B103: Прием пищи, наименование блюда | C103: Масса | D103: Пищевые вещества | G103: Энергетическая ценность | H103: Витамины | M103: Минеральные вещества
D104: Белки | E104: Жиры | F104: Углеводы | H104: B1 | I104: B2 | J104: A | K104: D | L104: C | M104: Na | N104: K | O104: Ca | P104: Mg | Q104: P | R104: Fe | S104: I | T104: Se | U104: F
C105: г | D105: г | E105: г | F105: г | G105: ккал | H105: мг | I105: мг | J105: мкг рет.экв | K105: мкг | L105: мг | M105: мг | N105: мг | O105: мг | P105: мг | Q105: мг | R105: мг | S105: мкг | T105: мкг | U105: мкг
B106: Суббота, 1 неделя
B107: Буфет | C107: 11-18
A108: 54-3гн-2020 | B108: Чай с лимоном и сахаром | C108: 155 | D108: 0.2 | E108: 0 | F108: 5 | G108: 20.9 | H108: 0 | I108: 0.01 | J108: 0.29 | K108: 0 | L108: 0.87 | M108: 0.95 | N108: 22.67 | O108: 50.25 | P108: 3.42 | Q108: 6.39 | R108: 0.58 | S108: 0.01 | T108: 0.02 | U108: 0.53
A109: Пром. | B109: Сушка простая | C109: 20 | D109: 2.2 | E109: 0.3 | F109: 13.8 | G109: 66.1 | H109: 0.05 | I109: 0.01 | J109: 0 | K109: 0 | L109: 0 | M109: 121 | N109: 37 | O109: 6 | P109: 9.2 | Q109: 24.2 | R109: 0.58 | S109: 0 | T109: 0 | U109: 0
B110: Итого за буфет | C110: 175 | D110: 2.4 | E110: 0.3 | F110: 18.8 | G110: 87 | H110: 0.05 | I110: 0.02 | J110: 0.29 | K110: 0 | L110: 0.87 | M110: 121.95 | N110: 59.67 | O110: 56.25 | P110: 12.62 | Q110: 30.59 | R110: 1.16 | S110: 0.01 | T110: 0.02 | U110: 0.53
B111: Горячий завтрак | C111: 11-18
A112: 54-16з-2020 | B112: Винегрет с растительным маслом | C112: 60 | D112: 0.7 | E112: 5.4 | F112: 4 | G112: 67.1 | H112: 0.02 | I112: 0.02 | J112: 72.89 | K112: 0 | L112: 2.26 | M112: 200.99 | N112: 127.85 | O112: 12.1 | P112: 9.66 | Q112: 21.4 | R112: 0.41 | S112: 7.86 | T112: 0.13 | U112: 11.85
A113: 54-21г-2000 | B113: Горошница | C113: 200 | D113: 19.27 | E113: 1.76 | F113: 45.04 | G113: 273.1 | H113: 0.58 | I113: 0.12 | J113: 1.2 | K113: 0 | L113: 0 | M113: 221 | N113: 725 | O113: 166 | P113: 93 | Q113: 286 | R113: 5.9 | S113: 31.77 | T113: 11.5 | U113: 30
A114: № рец. 290 | B114: Птица тушеная в соусе | C114: 50/50 | D114: 13.8 | E114: 14.8 | F114: 3.9 | G114: 211 | H114: 0.1 | I114: 0 | J114: 0 | K114: 0 | L114: 1.5 | M114: 0 | N114: 0 | O114: 26.4 | P114: 16.6 | Q114: 115.3 | R114: 0.9 | S114: 0 | T114: 0 | U114: 0
A115: 54-23гн-2020 | B115: Кофейный напиток с молоком | C115: 200 | D115: 3.9 | E115: 2.9 | F115: 11.2 | G115: 86 | H115: 0.03 | I115: 0.13 | J115: 13.29 | K115: 0 | L115: 0.52 | M115: 38.55 | N115: 183.98 | O115: 148.32 | P115: 30.67 | Q115: 106.79 | R115: 1.06 | S115: 9 | T115: 1.76 | U115: 20
A116: Пром. | B116: Хлеб пшеничный | C116: 30 | D116: 2.3 | E116: 0.2 | F116: 14.8 | G116: 70.3 | H116: 0.03 | I116: 0.01 | J116: 0 | K116: 0 | L116: 0 | M116: 149.7 | N116: 27.9 | O116: 6 | P116: 4.2 | Q116: 19.5 | R116: 0.33 | S116: 0.96 | T116: 1.8 | U116: 4.35
A117: Пром. | B117: Хлеб ржаной | C117: 20 | D117: 1.3 | E117: 0.2 | F117: 6.7 | G117: 34.2 | H117: 0.04 | I117: 0.02 | J117: 0 | K117: 0 | L117: 0 | M117: 122 | N117: 49 | O117: 7 | P117: 9.4 | Q117: 31.6 | R117: 0.78 | S117: 0 | T117: 6.18 | U117: 0
B118: Итого за Завтрак | C118: 610 | D118: =SUM(D112:D117) -> 41.27 | E118: =SUM(E112:E117) -> 25.26 | F118: 85.64 | G118: 741.7 | H118: 0.8 | I118: 0.3 | J118: 87.38 | K118: 0 | L118: 4.28 | M118: 732.24 | N118: 1113.73 | O118: 365.82 | P118: 163.53 | Q118: 580.59 | R118: 9.38 | S118: 49.59 | T118: 21.37 | U118: 66.2
B119: Итого за день | C119: =C118+C110 -> 785 | D119: =D118+D110 -> 43.67 | E119: 25.56 | F119: 104.44 | G119: =G118+G110 -> 828.7 | H119: 0.85 | I119: 0.32 | J119: 87.67 | K119: 0 | L119: 5.15 | M119: 854.19 | N119: 1173.4 | O119: 422.07 | P119: 176.15 | Q119: 611.18 | R119: 10.54 | S119: 49.6 | T119: 21.39 | U119: 66.73
A121: 7 день, 2 неделя
A122: № рецептуры | B122: Прием пищи, наименование блюда | C122: Масса | D122: Пищевые вещества | G122: Энергетическая ценность | H122: Витамины | M122: Минеральные вещества
D123: Белки | E123: Жиры | F123: Углеводы | H123: B1 | I123: B2 | J123: A | K123: D | L123: C | M123: Na | N123: K | O123: Ca | P123: Mg | Q123: P | R123: Fe | S123: I | T123: Se | U123: F
C124: г | D124: г | E124: г | F124: г | G124: ккал | H124: мг | I124: мг | J124: мкг рет.экв | K124: мкг | L124: мг | M124: мг | N124: мг | O124: мг | P124: мг | Q124: мг | R124: мг | S124: мкг | T124: мкг | U124: мкг
B125: Понедельник, 2 неделя
B126: Буфет | C126: 11-18
A127: 54-21гн-2020 | B127: Какао с молоком | C127: 150 | D127: 3.5 | E127: 2.6 | F127: 9.4 | G127: 75.3 | H127: 0.03 | I127: 0.12 | J127: 12.94 | K127: 0 | L127: 0.51 | M127: 37.46 | N127: 165.25 | O127: 125.76 | P127: 25.74 | Q127: 97.71 | R127: 0.82 | S127: 8.78 | T127: 1.72 | U127: 28.69
A128: Пром. | B128: Сушка простая | C128: 20 | D128: 2.2 | E128: 0.3 | F128: 13.8 | G128: 66.1 | H128: 0.05 | I128: 0.01 | J128: 0 | K128: 0 | L128: 0 | M128: 121 | N128: 37 | O128: 6 | P128: 9.2 | Q128: 24.2 | R128: 0.58 | S128: 0 | T128: 0 | U128: 0
B129: Итого за буфет | C129: 170 | D129: 5.7 | E129: 2.9 | F129: 23.2 | G129: 141.4 | H129: 0.08 | I129: 0.13 | J129: 12.94 | K129: 0 | L129: 0.51 | M129: 158.46 | N129: 202.25 | O129: 131.76 | P129: 34.94 | Q129: 121.91 | R129: 1.4 | S129: 8.78 | T129: 1.72 | U129: 28.69
B130: Горячий завтрак | C130: 11-18
A131: ном.рец №40 | B131: Салат картофельный с морковью, зеленым горошком и растительным маслом | C131: 60 | D131: 1.6 | E131: 4.3 | F131: 5.9 | G131: 68.7 | H131: 0 | I131: 0 | J131: 0.4 | K131: 0 | L131: 3.9 | M131: 0 | N131: 0 | O131: 14.8 | P131: 13.9 | Q131: 37 | R131: 0.7 | S131: 0 | T131: 0 | U131: 0
A132: 54-4г-2020 | B132: Каша гречневая рассыпчатая | C132: 180 | D132: 9.87 | E132: 7.61 | F132: 43.12 | G132: 280.5 | H132: 0.26 | I132: 0.14 | J132: 23.02 | K132: 0.11 | L132: 0 | M132: 180 | N132: 263 | O132: 57 | P132: 144 | Q132: 217 | R132: 4.8 | S132: 26.73 | T132: 4.3 | U132: 19.27
A133: ном.рец №608 | B133: Котлета мясная Любительская, полуфабрикат в соусе | C133: 65/35 | D133: 10.04 | E133: 12.79 | F133: 8.12 | G133: 187.9 | H133: 0 | I133: 0 | J133: 38.45 | K133: 0.01 | L133: 1.15 | M133: 3 | N133: 43 | O133: 45.75 | P133: 35.13 | Q133: 173.38 | R133: 1.6 | S133: 0 | T133: 0 | U133: 0
A134: 54-2гн-2020 | B134: Чай с сахаром | C134: 200 | D134: 0.2 | E134: 0 | F134: 6.4 | G134: 26.8 | H134: 0 | I134: 0.01 | J134: 0.3 | K134: 0 | L134: 0.04 | M134: 0.68 | N134: 20.76 | O134: 66.08 | P134: 3.83 | Q134: 7.18 | R134: 0.73 | S134: 0 | T134: 0 | U134: 0
A135: Пром. | B135: Хлеб пшеничный | C135: 30 | D135: 2.3 | E135: 0.2 | F135: 14.8 | G135: 70.3 | H135: 0.03 | I135: 0.01 | J135: 0 | K135: 0 | L135: 0 | M135: 149.7 | N135: 27.9 | O135: 6 | P135: 4.2 | Q135: 19.5 | R135: 0.33 | S135: 0.96 | T135: 1.8 | U135: 4.35
A136: Пром. | B136: Хлеб ржаной | C136: 20 | D136: 1.3 | E136: 0.2 | F136: 6.7 | G136: 34.2 | H136: 0.04 | I136: 0.02 | J136: 0 | K136: 0 | L136: 0 | M136: 122 | N136: 49 | O136: 7 | P136: 9.4 | Q136: 31.6 | R136: 0.78 | S136: 0 | T136: 6.18 | U136: 0
B137: Итого за Завтрак | C137: 590 | D137: =SUM(D131:D136) -> 25.31 | E137: 25.1 | F137: 85.04 | G137: 668.4 | H137: 0.33 | I137: 0.18 | J137: 62.17 | K137: 0.12 | L137: 5.09 | M137: 455.38 | N137: 403.66 | O137: 196.63 | P137: 210.46 | Q137: 485.66 | R137: 8.94 | S137: 27.69 | T137: 12.28 | U137: 23.62
B138: Итого за день | C138: =C137+C129 -> 760 | D138: 31.01 | E138: 28 | F138: 108.24 | G138: 809.8 | H138: 0.41 | I138: 0.31 | J138: 75.11 | K138: 0.12 | L138: 5.6 | M138: 613.84 | N138: 605.91 | O138: 328.39 | P138: 245.4 | Q138: 607.57 | R138: 10.34 | S138: 36.47 | T138: 14 | U138: 52.31
A140: 8 день, 2 неделя
A141: № рецептуры | B141: Прием пищи, наименование блюда | C141: Масса | D141: Пищевые вещества | G141: Энергетическая ценность | H141: Витамины | M141: Минеральные вещества
D142: Белки | E142: Жиры | F142: Углеводы | H142: B1 | I142: B2 | J142: A | K142: D | L142: C | M142: Na | N142: K | O142: Ca | P142: Mg | Q142: P | R142: Fe | S142: I | T142: Se | U142: F
C143: г | D143: г | E143: г | F143: г | G143: ккал | H143: мг | I143: мг | J143: мкг рет.экв | K143: мкг | L143: мг | M143: мг | N143: мг | O143: мг | P143: мг | Q143: мг | R143: мг | S143: мкг | T143: мкг | U143: мкг
B144: Вторник, 2 неделя
B145: Буфет | C145: 11-18
A146: 54-13к-2020 | B146: Каша вязкая молочная пшеничная | C146: 150 | D146: 6.1 | E146: 6.9 | F146: 29 | G146: 202.7 | H146: 0.1 | I146: 0.13 | J146: 30.74 | K146: 0.1 | L146: 0.41 | M146: 256.57 | N146: 169.91 | O146: 113.68 | P146: 29.4 | Q146: 154.74 | R146: 1.64 | S146: 37.16 | T146: 24.8 | U146: 16.11
A147: 54-1гн-2020 | B147: Чай без сахара | C147: 150 | D147: 0.1 | E147: 0 | F147: 0 | G147: 1.1 | H147: 0 | I147: 0.01 | J147: 0.23 | K147: 0 | L147: 0.03 | M147: 0.47 | N147: 15.44 | O147: 49.47 | P147: 2.87 | Q147: 5.38 | R147: 0.54 | S147: 0 | T147: 0 | U147: 0
B148: Итого за буфет | C148: 300 | D148: 6.2 | E148: 6.9 | F148: 29 | G148: 203.8 | H148: 0.1 | I148: 0.14 | J148: 30.97 | K148: 0.1 | L148: 0.44 | M148: 257.04 | N148: 185.35 | O148: 163.15 | P148: 32.27 | Q148: 160.12 | R148: 2.18 | S148: 37.16 | T148: 24.8 | U148: 16.11
B149: Горячий завтрак | C149: 11-18
A150: 54-13з-2020 | B150: Салат из свеклы отварной с растительным маслом | C150: 60 | D150: 0.8 | E150: 2.7 | F150: 4.6 | G150: 45.6 | H150: 0.01 | I150: 0.02 | J150: 0.68 | K150: 0 | L150: 2.28 | M150: 78.77 | N150: 136.27 | O150: 19.21 | P150: 10.95 | Q150: 21.51 | R150: 0.7 | S150: 11.99 | T150: 0.35 | U150: 11.4
A151: 54-12м-2020 | B151: Плов с курицей | C151: 170/50 | D151: 20.34 | E151: 8.18 | F151: 36.38 | G151: 300.4 | H151: 0.08 | I151: 0.07 | J151: 159.36 | K151: 0 | L151: 2 | M151: 301 | N151: 316 | O151: 80 | P151: 87 | Q151: 193 | R151: 1.7 | S151: 41.15 | T151: 21.6 | U151: 129.9
A152: 54-3гн-2020 | B152: Чай с лимоном и сахаром | C152: 207 | D152: 0.2 | E152: 0.1 | F152: 6.6 | G152: 27.9 | H152: 0 | I152: 0.01 | J152: 0.38 | K152: 0 | L152: 1.16 | M152: 1.26 | N152: 30.23 | O152: 67 | P152: 4.56 | Q152: 8.52 | R152: 0.77 | S152: 0.01 | T152: 0.02 | U152: 0.7
A153: 54-10в-2020 | B153: Булочка ванильная | C153: 50 | D153: 3.9 | E153: 3.37 | F153: 25.39 | G153: 147.4 | H153: 0.04 | I153: 0.02 | J153: 15.93 | K153: 0.12 | L153: 0 | M153: 200 | N153: 41 | O153: 14 | P153: 5 | Q153: 33 | R153: 0.5 | S153: 27.81 | T153: 2.6 | U153: 9.19
A154: Пром. | B154: Хлеб пшеничный | C154: 30 | D154: 2.3 | E154: 0.2 | F154: 14.8 | G154: 70.3 | H154: 0.03 | I154: 0.01 | J154: 0 | K154: 0 | L154: 0 | M154: 149.7 | N154: 27.9 | O154: 6 | P154: 4.2 | Q154: 19.5 | R154: 0.33 | S154: 0.96 | T154: 1.8 | U154: 4.35
A155: Пром. | B155: Хлеб ржаной | C155: 20 | D155: 1.3 | E155: 0.2 | F155: 6.7 | G155: 34.2 | H155: 0.04 | I155: 0.02 | J155: 0 | K155: 0 | L155: 0 | M155: 122 | N155: 49 | O155: 7 | P155: 9.4 | Q155: 31.6 | R155: 0.78 | S155: 0 | T155: 6.18 | U155: 0
B156: Итого за Завтрак | C156: 587 | D156: =SUM(D150:D155) -> 28.84 | E156: =SUM(E150:E155) -> 14.75 | F156: 94.47 | G156: 625.8 | H156: 0.2 | I156: 0.15 | J156: 176.35 | K156: 0.12 | L156: 5.44 | M156: 852.73 | N156: 600.4 | O156: 193.21 | P156: 121.11 | Q156: 307.13 | R156: 4.78 | S156: 81.92 | T156: 32.55 | U156: 155.54
B157: Итого за день | C157: 887 | D157: =D156+D148 -> 35.04 | E157: =E156+E148 -> 21.65 | F157: 123.47 | G157: 829.6 | H157: 0.3 | I157: 0.29 | J157: 207.32 | K157: 0.22 | L157: 5.88 | M157: 1109.77 | N157: 785.75 | O157: 356.36 | P157: 153.38 | Q157: 467.25 | R157: 6.96 | S157: 119.08 | T157: 57.35 | U157: 171.65
A159: 9 день, 2 неделя
A160: № рецептуры | B160: Прием пищи, наименование блюда | C160: Масса | D160: Пищевые вещества | G160: Энергетическая ценность | H160: Витамины | M160: Минеральные вещества
D161: Белки | E161: Жиры | F161: Углеводы | H161: B1 | I161: B2 | J161: A | K161: D | L161: C | M161: Na | N161: K | O161: Ca | P161: Mg | Q161: P | R161: Fe | S161: I | T161: Se | U161: F
C162: г | D162: г | E162: г | F162: г | G162: ккал | H162: мг | I162: мг | J162: мкг рет.экв | K162: мкг | L162: мг | M162: мг | N162: мг | O162: мг | P162: мг | Q162: мг | R162: мг | S162: мкг | T162: мкг | U162: мкг
B163: Среда, 2 неделя
B164: Буфет | C164: 11-18
A165: 54-2гн-2020 | B165: Чай с сахаром | C165: 150 | D165: 0.1 | E165: 0 | F165: 4.8 | G165: 20.1 | H165: 0 | I165: 0.01 | J165: 0.23 | K165: 0 | L165: 0.03 | M165: 0.51 | N165: 15.57 | O165: 49.56 | P165: 2.87 | Q165: 5.38 | R165: 0.55 | S165: 0 | T165: 0 | U165: 0
A166: Пром. | B166: Сушка простая | C166: 20 | D166: 2.2 | E166: 0.3 | F166: 13.8 | G166: 66.1 | H166: 0.05 | I166: 0.01 | J166: 0 | K166: 0 | L166: 0 | M166: 121 | N166: 37 | O166: 6 | P166: 9.2 | Q166: 24.2 | R166: 0.58 | S166: 0 | T166: 0 | U166: 0
B167: Итого за буфет | C167: 170 | D167: 2.3 | E167: 0.3 | F167: 18.6 | G167: 86.2 | H167: 0.05 | I167: 0.02 | J167: 0.23 | K167: 0 | L167: 0.03 | M167: 121.51 | N167: 52.57 | O167: 55.56 | P167: 12.07 | Q167: 29.58 | R167: 1.13 | S167: 0 | T167: 0 | U167: 0
B168: Горячий завтрак | C168: 11-18
A169: 54-16з-2020 | B169: Винегрет с растительным маслом | C169: 60 | D169: 0.7 | E169: 5.4 | F169: 4 | G169: 67.1 | H169: 0.02 | I169: 0.02 | J169: 72.89 | K169: 0 | L169: 2.26 | M169: 200.99 | N169: 127.85 | O169: 12.1 | P169: 9.66 | Q169: 21.4 | R169: 0.41 | S169: 7.86 | T169: 0.13 | U169: 11.85
A170: 54-11г-2020 | B170: Картофельное пюре | C170: 200 | D170: 4.1 | E170: 7.07 | F170: 26.43 | G170: 185.8 | H170: 0.16 | I170: 0.14 | J170: 31.72 | K170: 0.12 | L170: 13 | M170: 215 | N170: 833 | O170: 53 | P170: 38 | Q170: 112 | R170: 1.3 | S170: 37.95 | T170: 1.1 | U170: 57.05
A171: 54-7р-2020 | B171: Рыба припущенная в молоко | C171: 70/30 | D171: 13.09 | E171: 7.52 | F171: 2.89 | G171: 131.6 | H171: 0.08 | I171: 0.11 | J171: 9.02 | K171: 0.16 | L171: 1 | M171: 111 | N171: 347 | O171: 68 | P171: 44 | Q171: 202 | R171: 0.7 | S171: 133.48 | T171: 11.9 | U171: 572.6
A172: 54-21гн-2020 | B172: Какао с молоком | C172: 200 | D172: 4.7 | E172: 3.5 | F172: 12.5 | G172: 100.4 | H172: 0.04 | I172: 0.16 | J172: 17.25 | K172: 0 | L172: 0.68 | M172: 49.95 | N172: 220.33 | O172: 167.68 | P172: 34.32 | Q172: 130.28 | R172: 1.09 | S172: 11.7 | T172: 2.29 | U172: 38.25
A173: Пром. | B173: Хлеб пшеничный | C173: 30 | D173: 2.3 | E173: 0.2 | F173: 14.8 | G173: 70.3 | H173: 0.03 | I173: 0.01 | J173: 0 | K173: 0 | L173: 0 | M173: 149.7 | N173: 27.9 | O173: 6 | P173: 4.2 | Q173: 19.5 | R173: 0.33 | S173: 0.96 | T173: 1.8 | U173: 4.35
A174: Пром. | B174: Хлеб ржаной | C174: 20 | D174: 1.3 | E174: 0.2 | F174: 6.7 | G174: 34.2 | H174: 0.04 | I174: 0.02 | J174: 0 | K174: 0 | L174: 0 | M174: 122 | N174: 49 | O174: 7 | P174: 9.4 | Q174: 31.6 | R174: 0.78 | S174: 0 | T174: 6.18 | U174: 0
A175: Пром. | B175: Яблоко | C175: 100 | D175: 0.6 | E175: 0.6 | F175: 14.7 | G175: 66.6 | H175: 0.04 | I175: 0.03 | J175: 7.5 | K175: 0 | L175: 15 | M175: 39 | N175: 417 | O175: 24 | P175: 14 | Q175: 17 | R175: 3.3 | S175: 3 | T175: 0.4 | U175: 12
B176: Итого за Завтрак | C176: 710 | D176: =SUM(D169:D175) -> 26.79 | E176: 24.49 | F176: 82.02 | G176: 656 | H176: 0.41 | I176: 0.49 | J176: 138.38 | K176: 0.28 | L176: 31.94 | M176: 887.64 | N176: 2022.08 | O176: 337.78 | P176: 153.58 | Q176: 533.78 | R176: 7.91 | S176: 194.95 | T176: 23.8 | U176: 696.1
B177: Итого за день | C177: =C176+C167 -> 880 | D177: =D176+D167 -> 29.09 | E177: =E176+E167 -> 24.79 | F177: 100.62 | G177: 742.2 | H177: 0.46 | I177: 0.51 | J177: 138.61 | K177: 0.28 | L177: 31.97 | M177: 1009.15 | N177: 2074.65 | O177: 393.34 | P177: 165.65 | Q177: 563.36 | R177: 9.04 | S177: 194.95 | T177: 23.8 | U177: 696.1
A179: 10 день, 2 неделя
A180: № рецептуры | B180: Прием пищи, наименование блюда | C180: Масса | D180: Пищевые вещества | G180: Энергетическая ценность | H180: Витамины | M180: Минеральные вещества
D181: Белки | E181: Жиры | F181: Углеводы | H181: B1 | I181: B2 | J181: A | K181: D | L181: C | M181: Na | N181: K | O181: Ca | P181: Mg | Q181: P | R181: Fe | S181: I | T181: Se | U181: F
C182: г | D182: г | E182: г | F182: г | G182: ккал | H182: мг | I182: мг | J182: мкг рет.экв | K182: мкг | L182: мг | M182: мг | N182: мг | O182: мг | P182: мг | Q182: мг | R182: мг | S182: мкг | T182: мкг | U182: мкг
B183: Четверг, 2 неделя
B184: Буфет | C184: 11-18
A185: 54-6к-2020 | B185: Каша вязкая молочная пшенная | C185: 150 | D185: 6.2 | E185: 7.6 | F185: 28.2 | G185: 206.2 | H185: 0.14 | I185: 0.11 | J185: 31.22 | K185: 0.1 | L185: 0.41 | M185: 254.01 | N185: 162.17 | O185: 107.34 | P185: 36.72 | Q185: 139.54 | R185: 0.99 | S185: 38.71 | T185: 2.33 | U185: 26.31
A186: 54-3гн-2020 | B186: Чай с лимоном и сахаром | C186: 155 | D186: 0.2 | E186: 0 | F186: 5 | G186: 20.9 | H186: 0 | I186: 0.01 | J186: 0.29 | K186: 0 | L186: 0.87 | M186: 0.95 | N186: 22.67 | O186: 50.25 | P186: 3.42 | Q186: 6.39 | R186: 0.58 | S186: 0.01 | T186: 0.02 | U186: 0.53
B187: Итого за буфет | C187: 305 | D187: 6.4 | E187: 7.6 | F187: 33.2 | G187: 227.1 | H187: 0.14 | I187: 0.12 | J187: 31.51 | K187: 0.1 | L187: 1.28 | M187: 254.96 | N187: 184.84 | O187: 157.59 | P187: 40.14 | Q187: 145.93 | R187: 1.57 | S187: 38.72 | T187: 2.35 | U187: 26.84
B188: Горячий завтрак | C188: 11-18
A189: ном.рец №41 | B189: Салат из отварной моркови с яблоками с растительным маслом | C189: 60 | D189: 0.6 | E189: 5.9 | F189: 4.6 | G189: 74.7 | H189: 0 | I189: 0 | J189: 0.7 | K189: 0 | L189: 1.4 | M189: 0 | N189: 0 | O189: 19.1 | P189: 13.6 | Q189: 19.6 | R189: 0.8 | S189: 0 | T189: 0 | U189: 0
A190: 54-6г-2020 | B190: Рис отварной | C190: 180 | D190: 4.32 | E190: 5.78 | F190: 43.74 | G190: 244.2 | H190: 0.04 | I190: 0.03 | J190: 22.03 | K190: 0.11 | L190: 0 | M190: 184 | N190: 56 | O190: 129 | P190: 28 | Q190: 87 | R190: 0.6 | S190: 24.91 | T190: 8.7 | U190: 32.63
A191: 54-2м-2020 | B191: Гуляш из говядины | C191: 60/40 | D191: 13.76 | E191: 13.91 | F191: 3.9 | G191: 195.8 | H191: 0.04 | I191: 0.12 | J191: 25.46 | K191: 0.07 | L191: 1 | M191: 122 | N191: 322 | O191: 55 | P191: 23 | Q191: 166 | R191: 2.5 | S191: 17.06 | T191: 0.4 | U191: 62.71
A192: 54-21гн-2020 | B192: Кофейный напиток с молоком | C192: 200 | D192: 3.9 | E192: 2.9 | F192: 11.2 | G192: 86 | H192: 0.03 | I192: 0.13 | J192: 13.29 | K192: 0 | L192: 0.52 | M192: 38.55 | N192: 183.98 | O192: 148.32 | P192: 30.67 | Q192: 106.79 | R192: 1.06 | S192: 9 | T192: 1.76 | U192: 20
A193: Пром. | B193: Хлеб пшеничный | C193: 30 | D193: 2.3 | E193: 0.2 | F193: 14.8 | G193: 70.3 | H193: 0.03 | I193: 0.01 | J193: 0 | K193: 0 | L193: 0 | M193: 149.7 | N193: 27.9 | O193: 6 | P193: 4.2 | Q193: 19.5 | R193: 0.33 | S193: 0.96 | T193: 1.8 | U193: 4.35
A194: Пром. | B194: Хлеб ржаной | C194: 20 | D194: 1.3 | E194: 0.2 | F194: 6.7 | G194: 34.2 | H194: 0.04 | I194: 0.02 | J194: 0 | K194: 0 | L194: 0 | M194: 122 | N194: 49 | O194: 7 | P194: 9.4 | Q194: 31.6 | R194: 0.78 | S194: 0 | T194: 6.18 | U194: 0
B195: Итого за Завтрак | C195: 590 | D195: =SUM(D189:D194) -> 26.18 | E195: 28.89 | F195: 84.94 | G195: 705.2 | H195: 0.18 | I195: 0.31 | J195: 61.48 | K195: 0.18 | L195: 2.92 | M195: 616.25 | N195: 638.88 | O195: 364.42 | P195: 108.87 | Q195: 430.49 | R195: 6.07 | S195: 51.93 | T195: 18.84 | U195: 119.69
B196: Итого за день | C196: =C195+C187 -> 895 | D196: =D195+D187 -> 32.58 | E196: 36.49 | F196: 118.14 | G196: 932.3 | H196: 0.32 | I196: 0.43 | J196: 92.99 | K196: 0.28 | L196: 4.2 | M196: 871.21 | N196: 823.72 | O196: 522.01 | P196: 149.01 | Q196: 576.42 | R196: 7.64 | S196: 90.65 | T196: 21.19 | U196: 146.53
A198: 11 день, 2 неделя
A199: № рецептуры | B199: Прием пищи, наименование блюда | C199: Масса | D199: Пищевые вещества | G199: Энергетическая ценность | H199: Витамины | M199: Минеральные вещества
D200: Белки | E200: Жиры | F200: Углеводы | H200: B1 | I200: B2 | J200: A | K200: D | L200: C | M200: Na | N200: K | O200: Ca | P200: Mg | Q200: P | R200: Fe | S200: I | T200: Se | U200: F
C201: г | D201: г | E201: г | F201: г | G201: ккал | H201: мг | I201: мг | J201: мкг рет.экв | K201: мкг | L201: мг | M201: мг | N201: мг | O201: мг | P201: мг | Q201: мг | R201: мг | S201: мкг | T201: мкг | U201: мкг
B202: Пятница, 2 неделя
B203: Буфет | C203: 11-18
A204: 54-9к-2020 | B204: Каша вязкая молочная овсяная | C204: 150 | D204: 6.4 | E204: 8.4 | F204: 25.7 | G204: 204.6 | H204: 0.15 | I204: 0.13 | J204: 30.15 | K204: 0.1 | L204: 0.39 | M204: 259.99 | N204: 205.54 | O204: 118.23 | P204: 47.12 | Q204: 175.03 | R204: 1.38 | S204: 38.44 | T204: 10.92 | U204: 46.71
A205: 54-2гн-2020 | B205: Чай с сахаром | C205: 150 | D205: 0.1 | E205: 0 | F205: 4.8 | G205: 20.1 | H205: 0 | I205: 0.01 | J205: 0.23 | K205: 0 | L205: 0.03 | M205: 0.51 | N205: 15.57 | O205: 49.56 | P205: 2.87 | Q205: 5.38 | R205: 0.55 | S205: 0 | T205: 0 | U205: 0
B206: Итого за буфет | C206: 300 | D206: 6.5 | E206: 8.4 | F206: 30.5 | G206: 224.7 | H206: 0.15 | I206: 0.14 | J206: 30.38 | K206: 0.1 | L206: 0.42 | M206: 260.5 | N206: 221.11 | O206: 167.79 | P206: 49.99 | Q206: 180.41 | R206: 1.93 | S206: 38.44 | T206: 10.92 | U206: 46.71
B207: Горячий завтрак | C207: 11-18
A208: 54-13з-2020 | B208: Салат из свеклы отварной с растительным маслом | C208: 60 | D208: 0.8 | E208: 2.7 | F208: 4.6 | G208: 45.6 | H208: 0.01 | I208: 0.02 | J208: 0.68 | K208: 0 | L208: 2.28 | M208: 78.77 | N208: 136.27 | O208: 19.21 | P208: 10.95 | Q208: 21.51 | R208: 0.7 | S208: 11.99 | T208: 0.35 | U208: 11.4
A209: 54-1г-2020 | B209: Макароны отварные | C209: 180 | D209: 6.39 | E209: 5.91 | F209: 39.36 | G209: 236.2 | H209: 0.07 | I209: 0.03 | J209: 22.03 | K209: 0.11 | L209: 0 | M209: 179 | N209: 64 | O209: 127 | P209: 9 | Q209: 48 | R209: 0.9 | S209: 24.92 | T209: 0.1 | U209: 14.31
A210: ном.рец №174 | B210: Тефтели мясные из говядины, полуфабрикат в соусе | C210: 75/30 | D210: 10.81 | E210: 10.4 | F210: 8.42 | G210: 168.9 | H210: 0 | I210: 0 | J210: 38.45 | K210: 0.01 | L210: 1.79 | M210: 3 | N210: 43 | O210: 45.75 | P210: 35.13 | Q210: 109 | R210: 1.6 | S210: 0 | T210: 0 | U210: 0
A211: 54-4гн-2020 | B211: Компот из кураги | C211: 200 | D211: 0.98 | E211: 0.05 | F211: 15.64 | G211: 66.9 | H211: 0.01 | I211: 0.03 | J211: 69.96 | K211: 0 | L211: 0 | M211: 3 | N211: 285 | O211: 90 | P211: 18 | Q211: 25 | R211: 0.6 | S211: 0 | T211: 0 | U211: 0
A212: Пром. | B212: Хлеб ржаной | C212: 20 | D212: 1.3 | E212: 0.2 | F212: 6.7 | G212: 34.2 | H212: 0.04 | I212: 0.02 | J212: 0 | K212: 0 | L212: 0 | M212: 122 | N212: 49 | O212: 7 | P212: 9.4 | Q212: 31.6 | R212: 0.78 | S212: 0 | T212: 6.18 | U212: 0
A213: Пром. | B213: Хлеб пшеничный | C213: 30 | D213: 2.3 | E213: 0.2 | F213: 14.8 | G213: 70.3 | H213: 0.03 | I213: 0.01 | J213: 0 | K213: 0 | L213: 0 | M213: 149.7 | N213: 27.9 | O213: 6 | P213: 4.2 | Q213: 19.5 | R213: 0.33 | S213: 0.96 | T213: 1.8 | U213: 4.35
... 31 more rows
